{"text_format":"1","workbook":"xlsx","n_sheets":36,"sheets":["Инструкция","Лог обновления","Титульный","Список МО","Горячая вода (по компонентам)","Горячая вода","Транспортировка","Подключение","Поставка","Ссылки на публикации","Комментарии","Проверка","AllSheetsInThisWorkbook","TEHSHEET","et_union_hor","et_union_vert","modInfo","modRegion","modReestr","modfrmReestr","modUpdTemplMain","REESTR_ORG","modClassifierValidate","modProv","modHyp","modList00","modList01","modList02","modList03","modList11","modfrmDateChoose","modComm","modThisWorkbook","REESTR_MO","modfrmReestrMR","modfrmCheckUpdates"],"not_rendered":{"charts":0,"images":25,"macros":1,"external_links":0,"defined_names":137,"comments":0,"pivot_tables":0},"unopened":[],"bounds":{"document_bytes":16777216,"sheet_cells":100000,"rows_first":2000,"rows_last":500,"rows_between":2000,"halvings":0,"cell_chars":16384,"cell_head_chars":4096},"cells_cut":0,"cells_raw":0,"read":"whole","date_system":"1900"}

{"sheet":"Инструкция","index":0,"n_rows":102,"n_cols":27,"rows_kept":102,"cut":false,"hidden":false,"merged":[[82,4,82,6],[78,4,78,23],[79,4,79,7],[101,5,101,23],[99,5,99,18],[80,4,80,6],[80,7,80,23],[81,4,81,6],[83,7,83,23],[82,7,82,23],[81,7,81,23],[97,4,97,23],[58,7,58,23],[39,4,39,23],[70,4,70,23],[60,7,60,23],[79,8,79,23],[76,4,76,23],[73,4,73,23],[1,1,1,6],[2,1,2,2],[4,1,4,24],[6,4,18,23],[20,5,20,12],[20,15,20,23],[21,15,21,23],[34,4,38,23],[57,4,57,6],[75,4,75,23],[45,4,56,23],[69,4,69,23],[71,4,71,23],[57,7,57,23],[21,5,21,12],[40,4,44,23],[22,15,22,22],[59,7,59,23],[74,4,74,23],[59,4,59,6],[72,4,72,23],[58,4,58,6]]}
[null,null,null,null,null,null,null,null,null,null,null,null,null,null,null,null,null,null,null,null,null,null,null,null,null,null," (требуется обновление)"]
[null,{"$f":"\"Код шаблона: \" & GetCode()","v":"Код шаблона: JKH.OPEN.INFO.PRICE.GVS"}]
[null,{"$f":"\"Версия \" & GetVersion()","v":"Версия 6.1.5"}]
[]
[null,"Показатели, подлежащие раскрытию в сфере горячего водоснабжения (цены и тарифы)"]
[]
[null,null,null,null,"• На рабочем месте должен быть установлен MS Office 2003 SP3, 2007 SP3, 2010 с полной версией MS Excel\n\n• Макросы во время работы должны быть включены (!)\n\n• Для корректной работы отчёта требуется выбрать низкий уровень безопасности\n(В меню MS Excel 2003: Сервис | Макрос | Безопасность | выбрать пункт «Низкая безопасность» | OK)\n(В меню MS Excel 2007/2010: Параметры Excel | Центр управления безопасностью | Параметры центра управления безопасностью | Параметры макросов | Включить все макросы | ОК)\n\n• Если Вы работаете в табличном процессоре MS Excel 2007 и выше, то можете использовать для работы формат XLSM (Книга Excel с поддержкой макросов). При работе в формате XLSM заметно быстрее происходит сохранение файла, а также уменьшается размер по сравнению с форматом XLS\n\n• Не рекомендуется снимать защиту с листов и каким-либо образом модифицировать защищаемые формулы и расчётные поля, в противном случае, отчёт будет отклонён системой\n\n• При сохранении не следует выбирать формат XLSX (Книга Excel), так как в указанном формате макросы, необходимые для работы отчёта, безвозвратно удаляются"]
[]
[]
[]
[]
[]
[]
[]
[]
[]
[]
[]
[]
[]
[null,null,null,null,"A"," - необязательные для заполнения",null,null,null,null,null,null,null,null,"A"," - с формулами и константами"]
[null,null,null,null,"A"," - обязательные для заполнения",null,null,null,null,null,null,null,null,"A"," - с выбором значений до двойному клику,"]
[null,null,null,null,null,null,null,null,null,null,null,null,null,null,null,"либо с возможностью выбора даты из календаря или ручного ввода"]
[]
[]
[]
[]
[]
[]
[]
[]
[]
[]
[]
[null,null,null,null,"Если в предложенном Вам списке необходимая организация, МР/МО отсутствуют, обновите реестры с помощью кнопок\n\nВ результате синхронизации с базой данных список организаций (МР/МО) будет заменён актуальным (механизм синхронизации требует подключения к сети Интернет и основан на использовании протокола HTTPS (TCP порт 443))\n\nЕсли после обновления Вам не удалось найти необходимую организацию в списке, обратитесь к ответственному за поддержание реестра Вашего региона. Информация о региональных органах регулирования доступна по ссылке:"]
[]
[]
[]
[]
[null,null,null,null,"http://www.fstrf.ru/regions/region/showlist"]
[]
[]
[]
[]
[]
[null,null,null,null,"• При сохранении шаблона осуществляется проверка корректности данных, в том числе на наличие значений в ячейках, обязательных для заполнения\n\n• Если какая-то ячейка не удовлетворяет условию проверки, на лист «Проверка» добавляется гиперссылка на данную ячейку и указывается причина ошибки\n\n• В колонке «Статус» для каждого сообщения возможны 2 значения: ошибка и предупреждение\n\n• При наличии сообщений со статусом «Ошибка» шаблон будет отклонён системой и не будет загружен в хранилище данных, сообщения со статусом «Предупреждение» носят информационный характер, и такой шаблон будет принят системой"]
[]
[]
[]
[]
[]
[]
[]
[]
[]
[]
[]
[null,null,null,null,"Web-сайт:",null,null,"http://sp.skbsma.ru/index.php?a=add&catid=26"]
[null,null,null,null,"Дистрибутивы:",null,null,"http://eias.ru/?page=show_distrs"]
[null,null,null,null,null,null,null,"для устранения ошибок (например, \"Compile error in hidden module\")"]
[]
[]
[]
[]
[]
[]
[]
[]
[]
[null,null,null,null,"Принципы работы с шаблоном"]
[null,null,null,null,"Перед началом работы с шаблоном Вам необходимо нажать кнопку \"Приступить к заполнению\", после чего на форме выбора выбрать из выпадающего списка нужный субъект РФ. После выбора субъекта РФ в шаблоне отобразятся листы для заполнения."]
[null,null,null,null,"На листе «Титульный» нужно заполнить все ячейки голубого и синего цвета.\nДля создания печатной формы нажмите на иконку принтера на листе «Титульный» (левый верхний угол)."]
[null,null,null,null,"Гиперссылки на листах вводите, не нарушая цвет ячейки (если копируете гиперссылку из браузера, то выполните двойной щелчок левой кнопки мыши по ячейке и только после этого можете вставить скопированный элемент)."]
[null,null,null,null,"При вводе даты на расчетных листах необходимо выбрать дату из календаря (иконка справа от выбранной ячейки), либо ввести дату непосредственно в ячейку в формате - 'ДД.ММ.ГГГГ'."]
[null,null,null,null,"Если какой-либо из показателей на расчетных листах для Вашей организации отсутствует, введите в поле, обязательное для заполнение, «0» (для числовых показателей) и «-» (для текстовых)."]
[null,null,null,null,"Внимательно следите за информационными сообщениями на расчетных листах."]
[null,null,null,null,"Все необходимые комментарии по всем формам Вы можете отразить на листе «Комментарии»."]
[]
[null,null,null,null," Обосновывающие материалы необходимо загружать с помощью \"ЕИАС Мониторинг\""]
[null,null,null,null,"Инструкция",null,null,null,"http://eias.ru/files/shablon/manual_loading_through_monitoring.pdf"]
[]
[]
[null,null,null,null,"Web-сайт:",null,null,"http://eias.ru/?page=show_templates"]
[]
[]
[]
[]
[]
[]
[]
[]
[]
[]
[]
[]
[]
[]
[null,null,null,null,"При наличии подключения к Интернет, можно автоматически проверять наличие доступных обновлений. Выберите способ оповещения о наличии обновлений для отчёта:"]
[]
[null,null,null,null,null,"проверять доступные обновления (рекомендуется)",null,null,null,null,null,null,null,null,null,null,null,null,null,null,null,null,null,null,null,null,"y"]
[]
[null,null,null,null,null,"никогда не проверять наличие обновлений (не рекомендуется)"]

{"sheet":"Лог обновления","index":1,"n_rows":35,"n_cols":3,"rows_kept":35,"cut":false,"hidden":true,"merged":[]}
["Дата/Время","Сообщение","Статус"]
["2015-10-02T15:09:29","Проверка доступных обновлений...","Информация"]
["2015-10-02T15:09:29","Версия шаблона 6.1.5 актуальна, обновление не требуется","Информация"]
["2016-12-30T09:38:40","Проверка доступных обновлений...","Информация"]
["2016-12-30T09:38:46","Версия шаблона 6.1.5 актуальна, обновление не требуется","Информация"]
["2018-01-16T14:41:09","Проверка доступных обновлений...","Информация"]
["2018-01-16T14:41:10","Нет доступных обновлений для шаблона с кодом JKH.OPEN.INFO.PRICE.GVS!","Информация"]
["2018-01-16T14:58:17","Проверка доступных обновлений...","Информация"]
["2018-01-16T14:58:17","Нет доступных обновлений для шаблона с кодом JKH.OPEN.INFO.PRICE.GVS!","Информация"]
["2018-01-16T15:09:47","Проверка доступных обновлений...","Информация"]
["2018-01-16T15:09:48","Нет доступных обновлений для шаблона с кодом JKH.OPEN.INFO.PRICE.GVS!","Информация"]
["2018-01-16T15:22:12","Проверка доступных обновлений...","Информация"]
["2018-01-16T15:22:13","Нет доступных обновлений для шаблона с кодом JKH.OPEN.INFO.PRICE.GVS!","Информация"]
["2018-01-17T08:26:43","Проверка доступных обновлений...","Информация"]
["2018-01-17T08:26:44","Нет доступных обновлений для шаблона с кодом JKH.OPEN.INFO.PRICE.GVS!","Информация"]
["2018-01-17T09:49:48","Проверка доступных обновлений...","Информация"]
["2018-01-17T09:49:50","Нет доступных обновлений для шаблона с кодом JKH.OPEN.INFO.PRICE.GVS!","Информация"]
["2018-01-17T11:27:41","Проверка доступных обновлений...","Информация"]
["2018-01-17T11:27:41","Нет доступных обновлений для шаблона с кодом JKH.OPEN.INFO.PRICE.GVS!","Информация"]
["2018-01-19T15:55:38","Проверка доступных обновлений...","Информация"]
["2018-01-19T15:55:39","Нет доступных обновлений для шаблона с кодом JKH.OPEN.INFO.PRICE.GVS!","Информация"]
["2018-01-19T16:02:50","Проверка доступных обновлений...","Информация"]
["2018-01-19T16:02:50","Нет доступных обновлений для шаблона с кодом JKH.OPEN.INFO.PRICE.GVS!","Информация"]
["2018-01-19T16:04:27","Проверка доступных обновлений...","Информация"]
["2018-01-19T16:04:28","Нет доступных обновлений для шаблона с кодом JKH.OPEN.INFO.PRICE.GVS!","Информация"]
["2018-01-19T16:29:47","Проверка доступных обновлений...","Информация"]
["2018-01-19T16:29:47","Нет доступных обновлений для шаблона с кодом JKH.OPEN.INFO.PRICE.GVS!","Информация"]
["2018-01-31T10:29:25","Проверка доступных обновлений...","Информация"]
["2018-01-31T10:29:25","Нет доступных обновлений для шаблона с кодом JKH.OPEN.INFO.PRICE.GVS!","Информация"]
["2018-02-19T13:03:47","Проверка доступных обновлений...","Информация"]
["2018-02-19T13:03:50","Нет доступных обновлений для шаблона с кодом JKH.OPEN.INFO.PRICE.GVS!","Информация"]
["2018-02-19T14:04:10","Проверка доступных обновлений...","Информация"]
["2018-02-19T14:04:11","Нет доступных обновлений для шаблона с кодом JKH.OPEN.INFO.PRICE.GVS!","Информация"]
["2018-02-20T09:49:37","Проверка доступных обновлений...","Информация"]
["2018-02-20T09:49:39","Нет доступных обновлений для шаблона с кодом JKH.OPEN.INFO.PRICE.GVS!","Информация"]

{"sheet":"Титульный","index":2,"n_rows":55,"n_cols":6,"rows_kept":55,"cut":false,"hidden":false,"merged":[[4,4,4,5]]}
[null,null,null,null,null,30919361]
[]
[]
[null,null,null,null,null,{"$f":"version","v":"Версия 6.1.5"}]
[null,null,null,null,"Показатели, подлежащие раскрытию в сфере горячего водоснабжения (цены и тарифы)"]
[]
[null,null,null,null,"Субъект РФ","Ярославская область"]
[]
[null,null,null,null,"Публикация","На сайте регулирующего органа"]
[]
[null,null,null,null,"По желанию организации информация раскрыта в дополнительных источниках публикации?","да"]
[]
[null,null,null,null,null,"Период регулирования"]
[null,null,null,null,"Начало очередного периода регулирования","01.01.2018"]
[null,null,null,null,"Окончание очередного периода регулирования","31.12.2019"]
[]
[null,null,null,null,"Является ли данное юридическое лицо подразделением (филиалом) другой организации","нет"]
[]
[null,null,null,null,"Наименование организации","АО \"Ярославские ЭнергоСистемы\""]
[null,null,null,null,"Наименование филиала"]
[null,null,null,null,"ИНН","7603066822"]
[null,null,null,null,"КПП","760301001"]
[]
[null,null,null,null,"Вид деятельности","Оказание услуг в сфере горячего водоснабжения"]
[]
[null,null,null,null,"Тариф","тариф на горячую воду (горячее водоснабжение)"]
[]
[null,null,null,null,"Режим налогообложения","общий"]
[null,null,null,null,null,"НДС (Отметка об учтенном НДС)"]
[null,null,null,null,"Организации-перепродавцы","тариф не утверждался"]
[null,null,null,null,"Бюджетные потребители","тариф не утверждался"]
[null,null,null,null,"Население","тариф не утверждался"]
[null,null,null,null,"Прочие","тариф указан без НДС для плательщиков НДС"]
[]
[null,null,null,null,"Наличие двухставочного тарифа","нет"]
[]
[null,null,null,null,"Тариф на гор. воду установлен с учетом компонентов","да"]
[]
[null,null,null,null,null,"Адрес регулируемой организации"]
[null,null,null,null,"Юридический адрес","150055, Ярославль, ул. Красноборская, д.5, корп.1."]
[null,null,null,null,"Почтовый адрес","150055, Ярославль, ул. Красноборская, д.5, корп.1."]
[]
[null,null,null,null,null,"Руководитель"]
[null,null,null,null,"Фамилия, имя, отчество","Зарубин Сергей Николаевич"]
[null,null,null,null,"(код) номер телефона","8-4852-35-14-40"]
[]
[null,null,null,null,null,"Главный бухгалтер"]
[null,null,null,null,"Фамилия, имя, отчество","Березина Алевтина Сергеевна"]
[null,null,null,null,"(код) номер телефона","8-4852-53-04-64"]
[]
[null,null,null,null,null,"Должностное лицо, ответственное за составление формы"]
[null,null,null,null,"Фамилия, имя, отчество","Кучина Ирина Борисовна"]
[null,null,null,null,"Должность","Финансовый директор"]
[null,null,null,null,"(код) номер телефона","8-4852-67-05-85"]
[null,null,null,null,"e-mail","kib@yarensys.ru"]

{"sheet":"Список МО","index":3,"n_rows":16,"n_cols":8,"rows_kept":16,"cut":false,"hidden":false,"merged":[[13,3,14,3],[13,4,14,4],[3,3,3,7],[4,3,4,7],[6,5,6,7],[7,5,7,7],[8,5,8,7]]}
[]
[]
[]
[null,null,null,"Дифференциация тарифа"]
[null,null,null,{"$f":"IF(org=0,\"Не определено\",org)","v":"АО \"Ярославские ЭнергоСистемы\""}]
[]
[null,null,null,null,null,"Признак дифференциации тарифа (централизованная система ГВС, либо МО оказания услуг)"]
[null,null,null,null,"Условный порядковый номер",1]
[null,null,null,null,"Описание","закрытая"]
[]
[null,null,null,"№ п/п","Муниципальный район","№ п/п","Муниципальное образование","ОКТМО"]
[null,null,null,"1","2","3","4","5"]
[null,null,null,0,null,0]
[null,null,null,1,"город Ярославль",1,"город Ярославль","78701000"]
[null,null,null,null,null,null,"Добавить МО"]
[null,null,null,null,"Добавить МР"]

{"sheet":"Горячая вода (по компонентам)","index":4,"n_rows":35,"n_cols":28,"rows_kept":35,"cut":false,"hidden":false,"merged":[[31,5,31,26],[9,13,9,14],[33,5,33,27],[34,5,34,27],[29,5,29,22],[7,21,9,22],[8,18,8,20],[32,5,32,27],[9,19,9,20],[13,22,16,22],[7,5,10,7],[11,5,11,7],[7,25,10,25],[9,9,10,9],[13,27,28,27],[19,5,19,7],[4,4,4,27],[5,4,5,27],[7,26,10,26],[7,23,9,24],[8,9,8,11],[8,12,8,14],[7,4,10,4],[7,27,10,27],[9,15,10,15],[9,16,9,17],[7,9,7,20],[7,8,10,8],[9,18,10,18],[8,15,8,17],[9,10,9,11],[9,12,10,12],[25,4,28,4],[25,5,25,7],[25,21,28,21],[25,22,28,22],[23,5,23,7],[21,4,24,4],[21,5,21,7],[21,21,24,21],[21,22,24,22],[27,5,27,7],[17,4,20,4],[17,5,17,7],[17,21,20,21],[17,22,20,22],[13,4,16,4],[13,23,28,23],[13,24,28,24],[13,25,28,25],[13,26,28,26],[15,5,15,7],[13,5,13,7],[13,21,16,21]]}
[]
[]
[]
[]
[null,null,null,null,"Информация о тарифах на горячую воду (горячее водоснабжение)*"]
[null,null,null,null,{"$f":"IF(org=0,\"Не определено\",org)","v":"АО \"Ярославские ЭнергоСистемы\""}]
[]
[null,null,null,null,"№ п/п","Тариф",null,null,"Единица измерения ставки за содержание (гр.5)","Величина установленного тарифа на горячую воду (горячее водоснабжение)",null,null,null,null,null,null,null,null,null,null,null,"Срок действия установленного тарифа на горячую воду (горячее водоснабжение)",null,"Реквизиты решения об установлении тарифа на горячую воду (горячее водоснабжение)",null,"Наименование органа регулирования, принявшего решение об установлении тарифа на горячую воду (горячее водоснабжение)","Источник официального опубликования решения об установлении тарифа на горячую воду (горячее водоснабжение)","Примечание"]
[null,null,null,null,null,null,null,null,null,"Организации-перепродавцы",null,null,"Бюджетные потребители",null,null,"Население",null,null,"Прочие"]
[null,null,null,null,null,null,null,null,null,"Одноставочный тариф","Двухставочный тариф",null,"Одноставочный тариф","Двухставочный тариф",null,"Одноставочный тариф","Двухставочный тариф",null,"Одноставочный тариф","Двухставочный тариф"]
[null,null,null,null,null,null,null,null,null,null,"ставка за потребление горячей воды, руб/куб.м","ставка за содержание системы ГВС",null,"ставка за потребление горячей воды, руб/куб.м","ставка за содержание системы ГВС",null,"ставка за потребление горячей воды, руб/куб.м","ставка за содержание системы ГВС",null,"ставка за потребление горячей воды, руб/куб.м","ставка за содержание системы ГВС","дата начала","дата окончания","дата","номер"]
[null,null,null,null,"1","2",null,null,"2.1","3","4","5","6","7","8","9","10","11","12","13","14","15","16","17","18","19","20","21"]
[]
[null,1,null,null,1,{"$f":"\"Компонент на холодную воду\" & IF(double_rate_tariff=\"да\",\"\",\", руб./куб.м\")","v":"Компонент на холодную воду, руб./куб.м"},null,null,"тыс.руб./куб.м/ч/мес",null,null,null,null,null,null,null,null,null,23.57,null,null,"01.01.2018","30.06.2018","19.12.2017","308-ви","Департамент жилищно-коммунального хозяйства, энергетики и регулирования тарифов Ярославской области","газета Документ-Регион № 107-в(917) от 20.12.2017","26.01.2017 МУП «Яргорэнергосбыт» г. Ярославля было преобразовано в акционерное общество «Ярославский городской энергосбыт» города Ярославля (АО «Яргорэнергосбыт» г. Ярославля), которое является его полным правопреемником.\n\n20.04.2017 АО «Яргорэнергосбыт» г. Ярославля переименовано в акционерное общество «Ярославские Энергетические Системы» (АО «Ярославские ЭнергоСистемы»)."]
[null,null,null,null,null,null,null,"Добавить поставщика"]
[null,1,null,null,null,{"$f":"\"Компонент на тепловую энергию\" & IF(double_rate_tariff=\"да\",\"\",\", руб./Гкал\")","v":"Компонент на тепловую энергию, руб./Гкал"},null,null,"тыс.руб./Гкал/ч/мес",null,null,null,null,null,null,null,null,null,2346.4899999999998]
[null,null,null,null,null,null,null,"Добавить поставщика тепловой энергии"]
[null,1,"О",null,2,{"$f":"\"Компонент на холодную воду\" & IF(double_rate_tariff=\"да\",\"\",\", руб./куб.м\")","v":"Компонент на холодную воду, руб./куб.м"},null,null,"тыс.руб./куб.м/ч/мес",null,null,null,null,null,null,null,null,null,24.51,null,null,"01.07.2018","31.12.2018"]
[null,null,null,null,null,null,null,"Добавить поставщика"]
[null,1,null,null,null,{"$f":"\"Компонент на тепловую энергию\" & IF(double_rate_tariff=\"да\",\"\",\", руб./Гкал\")","v":"Компонент на тепловую энергию, руб./Гкал"},null,null,"тыс.руб./Гкал/ч/мес",null,null,null,null,null,null,null,null,null,2412.94]
[null,null,null,null,null,null,null,"Добавить поставщика тепловой энергии"]
[null,1,"О",null,3,{"$f":"\"Компонент на холодную воду\" & IF(double_rate_tariff=\"да\",\"\",\", руб./куб.м\")","v":"Компонент на холодную воду, руб./куб.м"},null,null,"тыс.руб./куб.м/ч/мес",null,null,null,null,null,null,null,null,null,24.51,null,null,"01.01.2019","30.06.2019"]
[null,null,null,null,null,null,null,"Добавить поставщика"]
[null,1,null,null,null,{"$f":"\"Компонент на тепловую энергию\" & IF(double_rate_tariff=\"да\",\"\",\", руб./Гкал\")","v":"Компонент на тепловую энергию, руб./Гкал"},null,null,"тыс.руб./Гкал/ч/мес",null,null,null,null,null,null,null,null,null,2412.94]
[null,null,null,null,null,null,null,"Добавить поставщика тепловой энергии"]
[null,1,"О",null,4,{"$f":"\"Компонент на холодную воду\" & IF(double_rate_tariff=\"да\",\"\",\", руб./куб.м\")","v":"Компонент на холодную воду, руб./куб.м"},null,null,"тыс.руб./куб.м/ч/мес",null,null,null,null,null,null,null,null,null,25.16,null,null,"01.07.2019","31.12.2019"]
[null,null,null,null,null,null,null,"Добавить поставщика"]
[null,1,null,null,null,{"$f":"\"Компонент на тепловую энергию\" & IF(double_rate_tariff=\"да\",\"\",\", руб./Гкал\")","v":"Компонент на тепловую энергию, руб./Гкал"},null,null,"тыс.руб./Гкал/ч/мес",null,null,null,null,null,null,null,null,null,2504.39]
[null,null,null,null,null,null,null,"Добавить поставщика тепловой энергии"]
[null,null,null,null,null,"Добавить период"]
[]
[null,null,null,null,"*","заполняется на основании решения соответствующего органа регулирования тарифов об установлении тарифов по регулируемому виду деятельности"]
[null,null,null,null,null,"информация раскрывается только по системе горячего водоснабжения, указанной на листе \"Список МО\""]
[null,null,null,null,"!","В шаблоне JKH.OPEN.INFO.PRICE.GVS cледует заполнять показатели только по горячему водоснабжению, осуществляемому с использованием закрытых систем водоснабжения."]
[null,null,null,null,"!","В случае, если горячая вода поставляется с использованием открытых систем теплоснабжения - воспользуйтесь шаблоном JKH.OPEN.INFO.PRICE.WARM"]

{"sheet":"Горячая вода","index":5,"n_rows":20,"n_cols":24,"rows_kept":20,"cut":false,"hidden":true,"merged":[[18,5,18,23],[19,5,19,23],[4,4,4,23],[5,4,5,23],[7,19,9,20],[9,9,9,10],[9,11,10,11],[9,12,9,13],[7,4,10,4],[7,22,10,22],[12,19,13,19],[12,20,13,20],[12,21,13,21],[12,22,13,22],[12,23,13,23],[14,5,14,18],[17,5,17,23],[7,17,9,18],[9,6,9,7],[9,8,10,8],[7,5,7,16],[8,14,8,16],[8,8,8,10],[8,5,8,7],[16,5,16,23],[7,21,10,21],[7,23,10,23],[9,5,10,5],[8,11,8,13],[9,15,9,16],[9,14,10,14]]}
[]
[]
[]
[]
[null,null,null,null,"Информация о тарифах на горячую воду (горячее водоснабжение)*"]
[null,null,null,null,{"$f":"IF(org=0,\"Не определено\",org)","v":"АО \"Ярославские ЭнергоСистемы\""}]
[null,null,null,null,null,null,null,null,null,null,null,null,null,null,null,null,null,null,null,null,null,null,null,"Форма 1.2 Приказа ФСТ России №129 от 15 мая 2013 г."]
[null,null,null,null,"№ п/п","Величина установленного тарифа на горячую воду (горячее водоснабжение)",null,null,null,null,null,null,null,null,null,null,null,"Срок действия установленного тарифа на горячую воду (горячее водоснабжение)",null,"Реквизиты решения об установлении тарифа на горячую воду (горячее водоснабжение)",null,"Наименование органа регулирования, принявшего решение об установлении тарифа на горячую воду (горячее водоснабжение)","Источник официального опубликования решения об установлении тарифа на горячую воду (горячее водоснабжение)","Примечание"]
[null,null,null,null,null,"Организации-перепродавцы",null,null,"Бюджетные потребители",null,null,"Население",null,null,"Прочие"]
[null,null,null,null,null,"Одноставочный тариф, руб./куб.м","Двухставочный тариф",null,"Одноставочный тариф, руб./куб.м","Двухставочный тариф",null,"Одноставочный тариф, руб./куб.м","Двухставочный тариф",null,"Одноставочный тариф, руб./куб.м","Двухставочный тариф"]
[null,null,null,null,null,null,"ставка за потребление горячей воды, руб./куб.м","ставка за содержание системы ГВС, тыс.руб./куб.м/ч/мес",null,"ставка за потребление горячей воды, руб./куб.м","ставка за содержание системы ГВС, тыс.руб./куб.м/ч/мес",null,"ставка за потребление горячей воды, руб./куб.м","ставка за содержание системы ГВС, тыс.руб./куб.м/ч/мес",null,"ставка за потребление горячей воды, руб./куб.м","ставка за содержание системы ГВС, тыс.руб./куб.м/ч/мес","дата начала","дата окончания","дата","номер"]
[null,null,null,null,"1","2","3","4","5","6","7","8","9","10","11","12","13","14","15","16","17","18","19","20"]
[null,null,null,null,1,null,null,null,null,null,null,null,null,null,null,null,null,"01.01.2018","30.06.2018","19.12.2017","308-ви","Департамент жилищно-коммунального хозяйства, энергетики и регулирования тарифов Ярославской области"]
[null,null,"О",null,2]
[null,null,null,null,null,"Добавить период"]
[]
[null,null,null,null,"*","заполняется на основании решения соответствующего органа регулирования тарифов об установлении тарифов по регулируемому виду деятельности"]
[null,null,null,null,null,"информация раскрывается только по системе горячего водоснабжения, указанной на листе \"Список МО\""]
[null,null,null,null,"!","В шаблоне JKH.OPEN.INFO.PRICE.GVS cледует заполнять показатели только по горячему водоснабжению, осуществляемому с использованием закрытых систем водоснабжения."]
[null,null,null,null,"!","В случае, если горячая вода поставляется с использованием открытых систем теплоснабжения - воспользуйтесь шаблоном JKH.OPEN.INFO.PRICE.WARM"]

{"sheet":"Транспортировка","index":6,"n_rows":17,"n_cols":24,"rows_kept":17,"cut":false,"hidden":true,"merged":[[16,5,16,23],[4,4,4,23],[5,4,5,23],[7,4,10,4],[7,5,7,16],[7,17,9,18],[7,21,10,21],[8,8,8,10],[15,5,15,23],[7,19,9,20],[7,22,10,22],[7,23,10,23],[9,15,9,16],[9,6,9,7],[9,9,9,10],[8,5,8,7],[9,5,10,5],[9,8,10,8],[9,14,10,14],[13,5,13,18],[8,11,8,13],[8,14,8,16],[9,11,10,11],[9,12,9,13]]}
[]
[]
[]
[]
[null,null,null,null,"Информация о тарифах на транспортировку горячей воды*"]
[null,null,null,null,{"$f":"IF(org=0,\"Не определено\",org)","v":"АО \"Ярославские ЭнергоСистемы\""}]
[null,null,null,null,null,null,null,null,null,null,null,null,null,null,null,null,null,null,null,null,null,null,null,"Форма 1.3 Приказа ФСТ России №129 от 15 мая 2013 г."]
[null,null,null,null,"№ п/п","Величина установленного тарифа на транспортировку горячей воды",null,null,null,null,null,null,null,null,null,null,null,"Срок действия установленного тарифа на транспортировку горячей воды",null,"Реквизиты решения об установлении тарифа на транспортировку горячей воды",null,"Наименование органа регулирования, принявшего решение об установлении тарифа на транспортировку горячей воды","Источник официального опубликования решения об установлении тарифа на транспортировку горячей воды","Примечание"]
[null,null,null,null,null,"Организации-перепродавцы",null,null,"Бюджетные потребители",null,null,"Население",null,null,"Прочие"]
[null,null,null,null,null,"Одноставочный тариф, руб./куб.м","Двухставочный тариф",null,"Одноставочный тариф, руб./куб.м","Двухставочный тариф",null,"Одноставочный тариф, руб./куб.м","Двухставочный тариф",null,"Одноставочный тариф, руб./куб.м","Двухставочный тариф"]
[null,null,null,null,null,null,"ставка за потребление горячей воды, руб./куб.м","ставка за содержание системы ГВС, тыс.руб./куб.м/ч/мес",null,"ставка за потребление горячей воды, руб./куб.м","ставка за содержание системы ГВС, тыс.руб./куб.м/ч/мес",null,"ставка за потребление горячей воды, руб./куб.м","ставка за содержание системы ГВС, тыс.руб./куб.м/ч/мес",null,"ставка за потребление горячей воды, руб./куб.м","ставка за содержание системы ГВС, тыс.руб./куб.м/ч/мес","дата начала","дата окончания","дата","номер"]
[null,null,null,null,"1","2","3","4","5","6","7","8","9","10","11","12","13","14","15","16","17","18","19","20"]
[null,null,null,null,1]
[null,null,null,null,null,"Добавить период"]
[]
[null,null,null,null,"*","заполняется на основании решения соответствующего органа регулирования тарифов об установлении тарифов по регулируемому виду деятельности"]
[null,null,null,null,null,"информация раскрывается только по системе горячего водоснабжения, указанной на листе \"Список МО\""]

{"sheet":"Подключение","index":7,"n_rows":17,"n_cols":27,"rows_kept":17,"cut":false,"hidden":true,"merged":[[16,5,16,26],[9,5,10,5],[9,11,10,11],[9,14,10,14],[13,5,13,18],[7,17,9,18],[9,15,10,15],[9,16,10,16],[15,5,15,26],[9,8,10,8],[7,23,9,26],[7,22,10,22],[9,10,10,10],[9,12,10,12],[9,13,10,13],[9,7,10,7],[4,4,4,26],[5,4,5,26],[7,4,10,4],[7,21,10,21],[7,5,7,16],[8,5,8,7],[8,8,8,10],[8,11,8,13],[7,19,9,20],[9,6,10,6],[9,9,10,9],[8,14,8,16]]}
[]
[]
[]
[]
[null,null,null,null,"Информация о тарифах на подключение к централизованной системе горячего водоснабжения*"]
[null,null,null,null,{"$f":"IF(org=0,\"Не определено\",org)","v":"АО \"Ярославские ЭнергоСистемы\""}]
[null,null,null,null,null,null,null,null,null,null,null,null,null,null,null,null,null,null,null,null,null,null,null,null,null,null,"Форма 1.4 Приказа ФСТ России №129 от 15 мая 2013 г."]
[null,null,null,null,"№ п/п","Величина установленного тарифа за подключение к централизованной системе горячего водоснабжения",null,null,null,null,null,null,null,null,null,null,null,"Срок действия установленного тарифа за подключение к централизованной системе горячего водоснабжения",null,"Реквизиты решения об установлении тарифа за подключение к централизованной системе горячего водоснабжения",null,"Наименование органа регулирования, принявшего решение об установлении тарифа за подключение к централизованной системе горячего водоснабжения","Источник официального опубликования решения об установлении тарифа за подключение к централизованной системе горячего водоснабжения","Признаки дифференциации ставки"]
[null,null,null,null,null,"Организации-перепродавцы",null,null,"Бюджетные потребители",null,null,"Население",null,null,"Прочие"]
[null,null,null,null,null,"Размер платы за подключение, тыс. руб. (руб.)","ставка тарифа за подключаемую нагрузку водопроводной сети, тыс руб/куб м в сут","ставка тарифа за протяженность водопроводной сети диаметром d, тыс руб/км","Размер платы за подключение, тыс. руб. (руб.)","ставка тарифа за подключаемую нагрузку водопроводной сети, тыс руб/куб м в сут","ставка тарифа за протяженность водопроводной сети диаметром d, тыс руб/км","Размер платы за подключение, тыс. руб. (руб.)","ставка тарифа за подключаемую нагрузку водопроводной сети, тыс руб/куб м в сут","ставка тарифа за протяженность водопроводной сети диаметром d, тыс руб/км","Размер платы за подключение, тыс. руб. (руб.)","ставка тарифа за подключаемую нагрузку водопроводной сети, тыс руб/куб м в сут","ставка тарифа за протяженность водопроводной сети диаметром d, тыс руб/км"]
[null,null,null,null,null,null,null,null,null,null,null,null,null,null,null,null,null,"дата начала","дата окончания","дата","номер",null,null,"подключаемая нагрузка водопроводной сети(куб.м/ч)","диаметр водопроводной сети (мм)","протяженность водопроводной сети (км)","условия прокладки сетей"]
[null,null,null,null,"1","2","3","4","5","6","7","8","9","10","11","12","13","14","15","16","17","18","19","20","21","22","23"]
[null,null,null,null,"1"]
[null,null,null,null,null,"Добавить период"]
[]
[null,null,null,null,"*","заполняется на основании решения соответствующего органа регулирования тарифов об установлении тарифов по регулируемому виду деятельности"]
[null,null,null,null,null,"информация раскрывается только по системе горячего водоснабжения, указанной на листе \"Список МО\""]

{"sheet":"Поставка","index":8,"n_rows":19,"n_cols":8,"rows_kept":19,"cut":false,"hidden":false,"merged":[[4,3,4,7],[5,3,5,7],[17,4,17,7],[18,4,18,7]]}
[]
[]
[]
[]
[null,null,null,"Информация об условиях, на которых осуществляется поставка регулируемых товаров (оказание регулируемых услуг).\nИнформация о порядке выполнения технологических, технических и других мероприятий, связанных с подключением к централизованной системе горячего водоснабжения"]
[null,null,null,{"$f":"IF(org=0,\"Не определено\",org)","v":"АО \"Ярославские ЭнергоСистемы\""}]
[]
[null,null,null,"№ п/п","Информация, подлежащая раскрытию","Значение","Ссылки\nна документы","Примечание"]
[null,null,null,"1","2","3","4","5"]
[null,null,null,"Раскрытие информации в соответствии с формой 1.9 Приказа ФСТ России №129 от 15 мая 2013 г."]
[null,null,null,1,"сведения об условиях публичных договоров поставок регулируемых товаров, оказания регулируемых услуг, в том числе договоров о подключении к централизованной системе горячего водоснабжения*","http://yarensys.ru/","https://eias.fstrf.ru/disclo/get_file?p_guid=e54b26e1-a50b-4ad2-bd5d-70ea48626b22","1.Договоргорячеговодоснабжения\n2.Договороподключении(технологическомприсоединении)\nкцентрализованнымсистемамгорячеговодоснабжения"]
[null,null,null,"Раскрытие информации в соответствии с формой 1.10 Приказа ФСТ России №129 от 15 мая 2013 г."]
[null,3,null,2,"форма заявки о подключении к централизованной системе горячего водоснабжения**","http://yarensys.ru/","https://eias.fstrf.ru/disclo/get_file?p_guid=700eaed3-6f75-4864-87c3-76b61fbc73ea\n\n","1.Заявление\nоподключении(присоединении)\nкцентрализованнымсистемамгорячеговодоснабжения;\n\n2.Заявление\nдлязаключениядоговорагорячеговодоснабжения\n"]
[null,null,null,3,"перечень документов, представляемых одновременно с заявкой о подключении к централизованной системе горячего водоснабжения","Перечень документов предоставляемых одновременно с заявкой на подключение  к централизованным системам горячего водоснабжения (указан в заявлении)","https://eias.fstrf.ru/disclo/get_file?p_guid=62c337c8-9f16-402a-bb50-b049ddcac830","Информация размещена на сайте http://yarensys.ru/"]
[null,3,null,4,"реквизиты нормативного правового акта, регламентирующего порядок действий заявителя и регулируемой организации при подаче, приеме, обработке заявки о подключении к централизованной системе горячего водоснабжения, принятии решения и уведомлении о принятом решении","Постановление Правительства РФ от 29.07.2013 N 642 (ред. от 26.03.2014) \"Об утверждении Правил горячего водоснабжения и внесении изменения в постановление Правительства Российской Федерации от 13 февраля 2006 г. N 83\"","https://eias.fstrf.ru/disclo/get_file?p_guid=84b4607c-8ac1-459d-bcc1-a704ea38a631","Информация размещена на сайте http://yarensys.ru/"]
[null,3,null,5,"телефоны и адреса службы, ответственной за прием и обработку заявок о подключении к централизованной системе горячего водоснабжения","Административный директор -(4852)35-88-17 (210); Ведущий инженер по технологическому присоединению договорного отдела - (4852)35-88-14 (214), г.Ярославль, ул. Красноборская, д. 5 корп. 1","https://eias.fstrf.ru/disclo/get_file?p_guid=ef1be401-7c38-4187-9387-2a291be8fb60","Информация размещена на сайте http://yarensys.ru/"]
[]
[null,null,null,null,"* При заполнении указывается ссылка на публичные договоры поставок регулируемых товаров, оказания регулируемых услуг, договоры о подключении к централизованной системе горячего водоснабжения, размещенные в сети \"Интернет\" согласно п.12 ПРАВИЛ ЗАПОЛНЕНИЯ ФОРМ ПРЕДОСТАВЛЕНИЯ ИНФОРМАЦИИ, ПОДЛЕЖАЩЕЙ РАСКРЫТИЮ, ОРГАНИЗАЦИЯМИ, ОСУЩЕСТВЛЯЮЩИМИ ГОРЯЧЕЕ ВОДОСНАБЖЕНИЕ, ХОЛОДНОЕ ВОДОСНАБЖЕНИЕ И ВОДООТВЕДЕНИЕ, И ОРГАНАМИ РЕГУЛИРОВАНИЯ ТАРИФОВ, утвержденных приказом ФСТ России от 15 мая 2013 г. N 129"]
[null,null,null,null,"** При заполнении указывается ссылка на форму заявки регулируемой организации, размещенную в сети \"Интернет\", согласно п.13 ПРАВИЛ ЗАПОЛНЕНИЯ ФОРМ ПРЕДОСТАВЛЕНИЯ ИНФОРМАЦИИ, ПОДЛЕЖАЩЕЙ РАСКРЫТИЮ, ОРГАНИЗАЦИЯМИ, ОСУЩЕСТВЛЯЮЩИМИ ГОРЯЧЕЕ ВОДОСНАБЖЕНИЕ, ХОЛОДНОЕ ВОДОСНАБЖЕНИЕ И ВОДООТВЕДЕНИЕ, И ОРГАНАМИ РЕГУЛИРОВАНИЯ ТАРИФОВ, утвержденных приказом ФСТ России от 15 мая 2013 г. N 129"]

{"sheet":"Ссылки на публикации","index":9,"n_rows":17,"n_cols":8,"rows_kept":17,"cut":false,"hidden":false,"merged":[[4,3,4,7],[5,3,5,7],[14,0,15,0],[14,4,14,7],[10,0,11,0],[10,4,10,7],[12,0,13,0],[12,4,12,7]]}
[]
[]
[]
[]
[null,null,null,"Ссылки на публикации"]
[null,null,null,{"$f":"IF(org=0,\"Не определено\",org)","v":"АО \"Ярославские ЭнергоСистемы\""}]
[]
[]
[null,null,null,"№ п/п","Содержание","Наименование сайта","Дата размещения информации","Адрес страницы сайта в сети \"Интернет\", на которой размещена информация"]
[null,null,null,"1","2","3","4","5"]
["1",null,null,{"$f":"A11","v":"1"},"Информация о тарифах на регулируемые товары (услуги) в сфере горячего водоснабжения (п.57 Постановления Правительства Российской Федерации от 17 января 2013 г. N 6 \"О стандартах раскрытия информации в сфере водоснабжения и водоотведения\")"]
[null,null,null,{"$f":"A11&\".1\"","v":"1.1"},"Сайт организации в сети Интернет","Официальный сайт АО \"Ярославские ЭнергоСистемы\" ","18.01.2018","http://yarensys.ru/"]
["2",null,null,{"$f":"A13","v":"2"},"Информация об условиях, на которых осуществляется поставка регулируемых товаров и (или) оказание регулируемых услуг (п.65 Постановления Правительства Российской Федерации от 17 января 2013 г. N 6 \"О стандартах раскрытия информации в сфере водоснабжения и водоотведения\")"]
[null,null,null,{"$f":"A13&\".1\"","v":"2.1"},"Сайт организации в сети Интернет","Официальный сайт АО \"Ярославские ЭнергоСистемы\" ","18.01.2018","http://yarensys.ru/"]
["3",null,null,{"$f":"A15","v":"3"},"Информация о порядке выполнения технологических, технических и других мероприятий, связанных с подключением к централизованной системе горячего водоснабжения (п.66 Постановления Правительства Российской Федерации от 17 января 2013 г. N 6 \"О стандартах раскрытия информации в сфере водоснабжения и водоотведения\")"]
[null,null,null,{"$f":"A15&\".1\"","v":"3.1"},"Сайт организации в сети Интернет","Официальный сайт АО \"Ярославские ЭнергоСистемы\" ","18.01.2018","http://yarensys.ru/\n"]
[null,null,null,null,"Добавить"]

{"sheet":"Комментарии","index":10,"n_rows":13,"n_cols":5,"rows_kept":13,"cut":false,"hidden":false,"merged":[[6,3,6,4],[7,3,7,4]]}
[]
[]
[]
[]
[]
[]
[null,null,null,"Комментарии"]
[null,null,null,{"$f":"IF(org=0,\"Не определено\",org)","v":"АО \"Ярославские ЭнергоСистемы\""}]
[]
[null,null,null,"№ п/п","Комментарий"]
[null,null,null,"1","2"]
[null,null,null,0]
[null,null,null,null,"Добавить"]

{"sheet":"Проверка","index":11,"n_rows":5,"n_cols":5,"rows_kept":5,"cut":false,"hidden":false,"merged":[[1,1,1,4]]}
[]
[null,"Результат проверки"]
[]
[null,"Ссылка1","Ссылка2","Причина","Статус"]
[null,"Поставка!G13",null,"Ссылка должна соответствовать формату 'https://eias.fstrf.ru/disclo/get_file?p_guid=XXXXXXXX-XXXX-XXXX-XXXX-XXXXXXXXXXXX' или 'https://tariff.eias.ru/disclo/get_file?p_guid=XXXXXXXX-XXXX-XXXX-XXXX-XXXXXXXXXXXX' (см. лист 'Инструкция' п.'Методология заполнения')","Ошибка"]

{"sheet":"AllSheetsInThisWorkbook","index":12,"n_rows":25,"n_cols":2,"rows_kept":25,"cut":false,"hidden":true,"merged":[]}
["Расчетные листы","Скрытые листы"]
["Инструкция","AllSheetsInThisWorkbook"]
["Лог обновления","TEHSHEET"]
["Титульный","et_union_hor"]
["Список МО","et_union_vert"]
["Горячая вода (по компонентам)","modInfo"]
["Горячая вода","modRegion"]
["Транспортировка","modReestr"]
["Подключение","modfrmReestr"]
["Поставка","modUpdTemplMain"]
["Ссылки на публикации","REESTR_ORG"]
["Комментарии","modClassifierValidate"]
["Проверка","modProv"]
[null,"modHyp"]
[null,"modList00"]
[null,"modList01"]
[null,"modList02"]
[null,"modList03"]
[null,"modList11"]
[null,"modfrmDateChoose"]
[null,"modComm"]
[null,"modThisWorkbook"]
[null,"REESTR_MO"]
[null,"modfrmReestrMR"]
[null,"modfrmCheckUpdates"]

{"sheet":"TEHSHEET","index":13,"n_rows":87,"n_cols":17,"rows_kept":87,"cut":false,"hidden":true,"merged":[]}
["REGION",null,"year_list","logical","Месяц\n(MONTH)","Квартал\n(QUARTER)","Месяц\n(kind_of_publication)","НДС\n/kind_of_NDS/","Номер СЦХВ(СЦВО)\n/SKI_number/","Единица измерения объема оказываемых услуг ГВС\n/kind_of_unit_GVS/","Метод регулирования\n/kind_of_control_method/","Вид деятельности, на которую установлен тариф /kind_of_activity_WARM/","виды тарифа\n/kind_group_rates/",null,null,null,"Вид теплоносителя\n(kind_of_heat_transfer)"]
["Алтайский край",null,2013,"да","январь","I квартал","На официальном сайте организации","общий","1","тыс.куб.м/сутки","метод экономически обоснованных расходов (затрат)","Передача+Сбыт","тариф на горячую воду (горячее водоснабжение)",null,null,null,"-"]
["Амурская область",null,2014,"нет","февраль","II квартал","На сайте регулирующего органа","общий с учетом освобождения от уплаты НДС","2","Гкал/ч","метод индексации установленных тарифов","Передача","тариф на транспортировку горячей воды",null,null,null,"горячая вода"]
["Архангельская область",null,2015,null,"март","III квартал",null,"специальный (упрощенная система налогообложения, система налогообложения для сельскохозяйственных товаропроизводителей)","3","куб.м/ч","метод обеспечения доходности инвестированного капитала","производство комбинированная выработка","тариф на подключение к централизованной системе горячего водоснабжения",null,null,null,"пар"]
["Астраханская область",null,2016,null,"апрель","IV квартал",null,null,"4",null,"метод сравнения аналогов","производство (некомбинированная выработка)+передача+сбыт",null,null,null,null,"отборный пар, 1,2-2,5 кг/см2"]
["Белгородская область",null,2017,null,"май",null,"НДС общий\n/kind_of_NDS_tariff/","НДС\n/kind_of_NDS_tariff/","5","Вид тарифа на передачу тепловой энергии /kind_of_tariff_unit/",null,"производство (некомбинированная выработка)+передача",null,null,null,null,"отборный пар, 2,5-7 кг/см2"]
["Брянская область",null,null,null,"июнь",null,"тариф указан с НДС для плательщиков НДС","тариф для организаций не являющихся плательщиками НДС","6","тыс.руб./куб.м/ч/мес",null,"производство (некомбинированная выработка)+сбыт",null,null,null,null,"отборный пар, 7-13 кг/см2"]
["Владимирская область",null,null,null,"июль",null,"тариф указан без НДС для плательщиков НДС","тариф не утверждался","7","тыс.руб./Гкал/ч/мес",null,"производство (некомбинированная выработка)",null,null,null,null,"отборный пар, > 13 кг/см2"]
["Волгоградская область",null,null,null,"август",null,"тариф не утверждался",null,"8",null,null,null,null,null,null,null,"острый редуцированный пар"]
["Вологодская область",null,null,null,"сентябрь",null,null,null,"9",null,null,null,null,null,null,null,"горячая вода в системе централизованного теплоснабжения на отопление"]
["Воронежская область",null,null,null,"октябрь",null,null,null,"10",null,null,null,null,null,null,null,"горячая вода в системе централизованного теплоснабжения на горячее водоснабжение"]
["г.Байконур",null,null,null,"ноябрь",null,"НДС общий люди\n/kind_of_NDS_tariff_people/","НДС\n/kind_of_NDS_tariff_people/","11",null,null,null,null,null,null,null,"другой"]
["г. Москва",null,null,null,"декабрь",null,"тариф с НДС организаций-плательщиков НДС","тариф организаций не являющихся плательщиками НДС","12"]
["г.Санкт-Петербург",null,null,null,null,null,"тариф не утверждался","тариф не утверждался","13"]
["г.Севастополь",null,null,null,null,null,null,null,"14"]
["Еврейская автономная область",null,null,null,null,null,null,null,"15"]
["Забайкальский край",null,null,null,null,null,null,null,"16"]
["Ивановская область",null,null,null,null,null,null,null,"17"]
["Иркутская область",null,null,null,null,null,null,null,"18"]
["Кабардино-Балкарская республика",null,null,null,null,null,null,null,"19"]
["Калининградская область",null,null,null,null,null,null,null,"20"]
["Калужская область"]
["Камчатский край"]
["Карачаево-Черкесская республика"]
["Кемеровская область"]
["Кировская область"]
["Костромская область"]
["Краснодарский край"]
["Красноярский край"]
["Курганская область"]
["Курская область"]
["Ленинградская область"]
["Липецкая область"]
["Магаданская область"]
["Московская область"]
["Мурманская область"]
["Ненецкий автономный округ"]
["Нижегородская область"]
["Новгородская область"]
["Новосибирская область"]
["Омская область"]
["Оренбургская область"]
["Орловская область"]
["Пензенская область"]
["Пермский край"]
["Приморский край"]
["Псковская область"]
["Республика Адыгея"]
["Республика Алтай"]
["Республика Башкортостан"]
["Республика Бурятия"]
["Республика Дагестан"]
["Республика Ингушетия"]
["Республика Калмыкия"]
["Республика Карелия"]
["Республика Коми"]
["Республика Крым"]
["Республика Марий Эл"]
["Республика Мордовия"]
["Республика Саха (Якутия)"]
["Республика Северная Осетия-Алания"]
["Республика Татарстан"]
["Республика Тыва"]
["Республика Хакасия"]
["Ростовская область"]
["Рязанская область"]
["Самарская область"]
["Саратовская область"]
["Сахалинская область"]
["Свердловская область"]
["Смоленская область"]
["Ставропольский край"]
["Тамбовская область"]
["Тверская область"]
["Томская область"]
["Тульская область"]
["Тюменская область"]
["Удмуртская республика"]
["Ульяновская область"]
["Хабаровский край"]
["Ханты-Мансийский автономный округ"]
["Челябинская область"]
["Чеченская республика"]
["Чувашская республика"]
["Чукотский автономный округ"]
["Ямало-Ненецкий автономный округ"]
["Ярославская область"]

{"sheet":"et_union_hor","index":14,"n_rows":70,"n_cols":24,"rows_kept":70,"cut":false,"hidden":true,"merged":[[15,0,16,0],[3,3,4,3],[15,4,15,7],[22,0,24,0],[22,1,23,1],[28,1,29,1],[28,4,29,4],[28,5,29,5],[22,5,23,5],[3,4,4,4],[22,4,23,4],[22,25,24,25],[22,19,24,19],[22,20,24,20],[22,21,24,21],[22,22,24,22],[22,23,24,23],[22,24,24,24],[42,27,45,27],[42,26,45,26],[42,4,45,4],[42,23,45,23],[42,24,45,24],[42,25,45,25],[42,22,45,22],[42,21,45,21],[42,5,42,7],[44,5,44,7],[67,4,68,4],[67,5,68,5],[67,6,68,6],[67,7,68,7],[67,8,68,8],[65,4,65,15],[66,4,66,6],[66,7,66,9],[66,10,66,12],[66,13,66,15],[67,15,68,15],[67,9,68,9],[67,10,68,10],[67,11,68,11],[67,12,68,12],[67,13,68,13],[67,14,68,14]]}
[]
["et_List01","et_List01_1"]
[]
[null,null,null,null,null,1]
[null,null,null,null,null,null,"Добавить МО"]
[]
[]
["et_Comm"]
[]
[]
[]
[]
["et_List03"]
[]
[]
[null,null,null,{"$f":"A16","v":0}]
[null,null,null,{"$f":"A16&\".1\"","v":".1"},"Сайт организации в сети Интернет"]
[]
[]
[]
["et_List02"]
[]
["1",1,null,null,{"$f":"A23&\".\"&B23","v":"1.1"},null,"через тепловую сеть",null,null,null,null,null,null,null,null,null,null,null,null,"","",""]
[null,null,null,null,null,null,"отпуск с коллекторов"]
[null,null,null,null,null,"Добавить вид теплоносителя"]
[]
["et_List02_1"]
[]
[null,null,null,null,{"$f":"A29&\".\"&B29","v":"."},null,"через тепловую сеть"]
[null,null,null,null,null,null,"отпуск с коллекторов"]
[]
["et_List06"]
[]
[null,null,null,null,1]
[]
[]
["et_List08"]
[]
[null,null,null,null,"1"]
[]
["et_List09"]
[]
[null,1,null,null,1,{"$f":"\"Компонент на холодную воду\" & IF(double_rate_tariff=\"да\",\"\",\", руб./куб.м\")","v":"Компонент на холодную воду, руб./куб.м"},null,null,"тыс.руб./куб.м/ч/мес",null,null,null,null,null,null,null,null,null,null,null,null,"","",""]
[null,null,null,null,null,null,null,"Добавить поставщика"]
[null,1,null,null,null,{"$f":"\"Компонент на тепловую энергию\" & IF(double_rate_tariff=\"да\",\"\",\", руб./Гкал\")","v":"Компонент на тепловую энергию, руб./Гкал"},null,null,"тыс.руб./Гкал/ч/мес"]
[null,null,null,null,null,null,null,"Добавить поставщика тепловой энергии"]
[]
["et_List09_1"]
[]
[null,null,null,null,null,null,"1",null,"тыс.руб./куб.м/ч/мес"]
[]
["et_List09_2"]
[]
[null,null,null,null,null,null,"1",null,"тыс.руб./Гкал/ч/мес"]
[]
["et_List09_3"]
[]
[null,null,null,null,null,null,"1"]
[]
["et_List10"]
[]
[null,null,null,null,1]
[]
["et_List08_table"]
[]
[null,null,null,null,"Величина установленного тарифа за подключение к централизованной системе горячего водоснабжения"]
[null,null,null,null,"Организации-перепродавцы",null,null,"Бюджетные потребители",null,null,"Население",null,null,"Прочие"]
[null,null,null,null,"Размер платы за подключение, тыс. руб. (руб.)","ставка тарифа за подключаемую нагрузку водопроводной сети, руб/куб м в сут","ставка тарифа за расстояние от точки подключения (технологического присоединения) объекта заявителя до точки подключения водопроводных сетей к объектам централизованных систем водоснабжения, руб/км","Размер платы за подключение, тыс. руб. (руб.)","ставка тарифа за подключаемую нагрузку водопроводной сети, руб/куб м в сут","ставка тарифа за расстояние от точки подключения (технологического присоединения) объекта заявителя до точки подключения водопроводных сетей к объектам централизованных систем водоснабжения, руб/км","Размер платы за подключение, тыс. руб. (руб.)","ставка тарифа за подключаемую нагрузку водопроводной сети, руб/куб м в сут","ставка тарифа за расстояние от точки подключения (технологического присоединения) объекта заявителя до точки подключения водопроводных сетей к объектам централизованных систем водоснабжения, руб/км","Размер платы за подключение, тыс. руб. (руб.)","ставка тарифа за подключаемую нагрузку водопроводной сети, руб/куб м в сут","ставка тарифа за расстояние от точки подключения (технологического присоединения) объекта заявителя до точки подключения водопроводных сетей к объектам централизованных систем водоснабжения, руб/км"]
[]
[null,null,null,null,"2","3","4","5","6","7","8","9","10","11","12","13"]

{"sheet":"et_union_vert","index":15,"n_rows":0,"n_cols":0,"rows_kept":0,"cut":false,"hidden":true,"merged":[]}

{"sheet":"modInfo","index":16,"n_rows":18,"n_cols":2,"rows_kept":18,"cut":false,"hidden":true,"merged":[]}
[null,"Титульный"]
[null,"Для выбора того или иного источника публикации выполните двойной щелчок по синей ячейке напротив соответствующего источника.\nВНИМАНИЕ! Если Вы снимаете галочку с пункта, то будут скрыты и очищены соответствующие строки на листе \"Ссылки на публикации\"!\n\nОпубликование перечисленных в шаблоне показателей на сайте организации в сети Интернет и в печатных изданиях не обязательно, если данный шаблон предоставлен по системе ЕИАС (региональный сегмент)."]
[null,"Обязательное опубликование на официальном сайте органа исполнительной власти субъекта Российской Федерации в области государственного регулирования тарифов (на официальном сайте органа местного самоуправления поселения или городского округа в случае передачи законом субъекта Российской Федерации полномочий по утверждению тарифов в сфере водоснабжения и водоотведения органам местного самоуправления) предусмотрено пунктом 3 (а) постановления Правительства №6 от 17.01.2013"]
[null,"Задайте период регулирования, выбрав даты начала и окончания очередного периода регулирования из календаря (иконка справа от указанной ячейки), либо введите дату непосредственно в ячейку в формате - 'ДД.ММ.ГГГГ'"]
[null,"Шаблон заполняется раздельно по каждому виду тарифа"]
[null,"В зависимости от указанного вида деятельности будут доступны для заполнения поля 'Производство', 'Передача' и 'Сбыт'"]
[null,"Если выбрано 'да', на листах с разбивкой по потребителям доступны для заполнения графы для двухставочного ставочного тарифа по группам потребителей"]
[null,"Ссылки на публикации"]
[null,"Вводите адрес сайта, не нарушая цвет ячейки /если копируете гиперссылку из браузера, то выполните двойной щелчок по ячейке и только после этого можете вставить скопированный элемент/"]
[null,"Материалы необходимо загружать с помощью \"ЕИАС Мониторинг\". Ссылка на инструкцию по загрузке материалов расположена на листе 'Инструкция' в п.'Методология заполнения'.\n\nВвводите ссылку, не нарушая цвет ячейки /если копируете гиперссылку из браузера, то выполните двойной щелчок по ячейке и только после этого можете вставить скопированный элемент/."]
[null,"Если для какого-либо пункта графы 'Наименование источника (сайта или печатного издания)' информация не раскрывалась, то в соответствующем поле укажите - 'не раскрывалась'"]
[null,"Список МО"]
[null,"В случае, если тариф не дифференцируется по централизованным системам ГВС, либо по МО оказания услуг, укажите все МР, на территории которых оказывается данный вид деятельности.\n\nВ случае, если тариф дифференцируется по централизованным системам ГВС, укажите все МР, на территории которых размещена данная централизованная система ГВС.\n\nВ случае, если тариф дифференцируется по МО оказания услуг, укажите все МР, на которые установлен один тариф, по которому заполняется данный шаблон."]
[null,"В случае, если тариф не дифференцируется по централизованным системам ГВС, либо по МО оказания услуг, укажите все МО, на территории которых оказывается данный вид деятельности.\n\nВ случае, если тариф дифференцируется по централизованным системам ГВС, укажите все МО, на территории которых размещена данная централизованная система ГВС.\n\nВ случае, если тариф дифференцируется по МО оказания услуг, укажите все МО, на которые установлен один тариф, по которому заполняется данный шаблон."]
[null,"Признак дифференциации тарифа"]
[null,"В случае, если тариф не дифференцируется по централизованным системам ГВС, либо по МО оказания услуг, введите 1.\n\nВ случае, если тариф дифференцируется по централизованным системам ГВС, введите значение от 1 до 100. Информацию по каждой централизованной системе ГВС, на которую установлен один отдельный тариф, необходимо заполнять в отдельном шаблоне. \n\nВ случае, если тариф дифференцируется по МО оказания услуг, введите значение от 1 до 100. Информацию по МО, на которое(-ые) установлен один отдельный тариф, необходимо заполнять в отдельном шаблоне. \n\n(!) Внимание (!) В каждом шаблоне, заполненном по одному признаку дифференциации тарифа (система горячего водоснабжения или МО оказания услуг), обязательно указывать разные условные порядковые номера."]
[null,"Стандарты"]
[null,"В качестве примечания Вы можете указать единицу измерения"]

{"sheet":"modRegion","index":17,"n_rows":0,"n_cols":0,"rows_kept":0,"cut":false,"hidden":true,"merged":[]}

{"sheet":"modReestr","index":18,"n_rows":0,"n_cols":0,"rows_kept":0,"cut":false,"hidden":true,"merged":[]}

{"sheet":"modfrmReestr","index":19,"n_rows":0,"n_cols":0,"rows_kept":0,"cut":false,"hidden":true,"merged":[]}

{"sheet":"modUpdTemplMain","index":20,"n_rows":0,"n_cols":0,"rows_kept":0,"cut":false,"hidden":true,"merged":[]}

{"sheet":"REESTR_ORG","index":21,"n_rows":313,"n_cols":12,"rows_kept":313,"cut":false,"hidden":true,"merged":[]}
["№","NSRF","MR_NAME","OKTMO_MR_NAME","MO_NAME","OKTMO_NAME","RST_ORG_ID","ORG_NAME","INN_NAME","KPP_NAME","VDET_NAME"]
[1,"Ярославская область","Большесельский муниципальный район","78603000","Благовещенское сельское поселение","78603411","26901857","АО \"РЭУ\"","7714783092","332743001","Оказание услуг в сфере горячего водоснабжения","HOT_VS"]
[2,"Ярославская область","Большесельский муниципальный район","78603000","Большесельский муниципальный район","78603000","26901857","АО \"РЭУ\"","7714783092","332743001","Оказание услуг в сфере горячего водоснабжения","HOT_VS"]
[3,"Ярославская область","Большесельский муниципальный район","78603000","Большесельский муниципальный район","78603000","26483498","ГУП ЖКХ ЯО \"Яркоммунсервис\"","7604004508","760401001","Оказание услуг в сфере горячего водоснабжения","HOT_VS"]
[4,"Ярославская область","Большесельский муниципальный район","78603000","Большесельский муниципальный район","78603000","27712950","ОАО \"Яркоммунсервис\"","7604016214","760401001","Оказание услуг в сфере горячего водоснабжения","HOT_VS"]
[5,"Ярославская область","Большесельский муниципальный район","78603000","Большесельское сельское поселение","78603422","26901857","АО \"РЭУ\"","7714783092","332743001","Оказание услуг в сфере горячего водоснабжения","HOT_VS"]
[6,"Ярославская область","Большесельский муниципальный район","78603000","Большесельское сельское поселение","78603422","28507030","АО \"Яркоммунсервис\"","7602090950","760201001","Поставка горячей воды","HOT_VS"]
[7,"Ярославская область","Большесельский муниципальный район","78603000","Вареговское сельское поселение","78603427","26901857","АО \"РЭУ\"","7714783092","332743001","Оказание услуг в сфере горячего водоснабжения","HOT_VS"]
[8,"Ярославская область","Большесельский муниципальный район","78603000","Вареговское сельское поселение","78603427","26483204","ООО \"ТехЭкспо\"","7604122607","760401001","Оказание услуг в сфере горячего водоснабжения","HOT_VS"]
[9,"Ярославская область","Борисоглебский муниципальный район","78606000","Андреевское сельское поселение","78606422","28822308","АО \"Малая комплексная энергетика\"","7612043797","760601001","Оказание услуг в сфере горячего водоснабжения","HOT_VS"]
[10,"Ярославская область","Борисоглебский муниципальный район","78606000","Андреевское сельское поселение","78606422","26569087","АО \"Ярославская генерирующая компания\"","7604178769","760601001","Оказание услуг в сфере горячего водоснабжения","HOT_VS"]
[11,"Ярославская область","Борисоглебский муниципальный район","78606000","Андреевское сельское поселение","78606422","26483222","ГУП ЖКХ ЯО \"Яркоммунсервис\" кот. Центра дет. и юношеского туризма","7604004508","760332001","Оказание услуг в сфере горячего водоснабжения","HOT_VS"]
[12,"Ярославская область","Борисоглебский муниципальный район","78606000","Борисоглебский муниципальный район","78606000","28822308","АО \"Малая комплексная энергетика\"","7612043797","760601001","Оказание услуг в сфере горячего водоснабжения","HOT_VS"]
[13,"Ярославская область","Борисоглебский муниципальный район","78606000","Борисоглебский муниципальный район","78606000","26569087","АО \"Ярославская генерирующая компания\"","7604178769","760601001","Оказание услуг в сфере горячего водоснабжения","HOT_VS"]
[14,"Ярославская область","Борисоглебский муниципальный район","78606000","Борисоглебский муниципальный район","78606000","26483498","ГУП ЖКХ ЯО \"Яркоммунсервис\"","7604004508","760401001","Оказание услуг в сфере горячего водоснабжения","HOT_VS"]
[15,"Ярославская область","Борисоглебский муниципальный район","78606000","Борисоглебский муниципальный район","78606000","26483222","ГУП ЖКХ ЯО \"Яркоммунсервис\" кот. Центра дет. и юношеского туризма","7604004508","760332001","Оказание услуг в сфере горячего водоснабжения","HOT_VS"]
[16,"Ярославская область","Борисоглебский муниципальный район","78606000","Борисоглебский муниципальный район","78606000","27712950","ОАО \"Яркоммунсервис\"","7604016214","760401001","Оказание услуг в сфере горячего водоснабжения","HOT_VS"]
[17,"Ярославская область","Борисоглебский муниципальный район","78606000","Борисоглебское сельское поселение","78606407","28822308","АО \"Малая комплексная энергетика\"","7612043797","760601001","Оказание услуг в сфере горячего водоснабжения","HOT_VS"]
[18,"Ярославская область","Борисоглебский муниципальный район","78606000","Борисоглебское сельское поселение","78606407","28507030","АО \"Яркоммунсервис\"","7602090950","760201001","Поставка горячей воды","HOT_VS"]
[19,"Ярославская область","Борисоглебский муниципальный район","78606000","Борисоглебское сельское поселение","78606407","26569087","АО \"Ярославская генерирующая компания\"","7604178769","760601001","Оказание услуг в сфере горячего водоснабжения","HOT_VS"]
[20,"Ярославская область","Борисоглебский муниципальный район","78606000","Борисоглебское сельское поселение","78606407","26483222","ГУП ЖКХ ЯО \"Яркоммунсервис\" кот. Центра дет. и юношеского туризма","7604004508","760332001","Оказание услуг в сфере горячего водоснабжения","HOT_VS"]
[21,"Ярославская область","Борисоглебский муниципальный район","78606000","Вощажниковское сельское поселение","78606410","28822308","АО \"Малая комплексная энергетика\"","7612043797","760601001","Оказание услуг в сфере горячего водоснабжения","HOT_VS"]
[22,"Ярославская область","Борисоглебский муниципальный район","78606000","Вощажниковское сельское поселение","78606410","26569087","АО \"Ярославская генерирующая компания\"","7604178769","760601001","Оказание услуг в сфере горячего водоснабжения","HOT_VS"]
[23,"Ярославская область","Борисоглебский муниципальный район","78606000","Вощажниковское сельское поселение","78606410","26483222","ГУП ЖКХ ЯО \"Яркоммунсервис\" кот. Центра дет. и юношеского туризма","7604004508","760332001","Оказание услуг в сфере горячего водоснабжения","HOT_VS"]
[24,"Ярославская область","Борисоглебский муниципальный район","78606000","Высоковское сельское поселение","78606415","28822308","АО \"Малая комплексная энергетика\"","7612043797","760601001","Оказание услуг в сфере горячего водоснабжения","HOT_VS"]
[25,"Ярославская область","Борисоглебский муниципальный район","78606000","Высоковское сельское поселение","78606415","26569087","АО \"Ярославская генерирующая компания\"","7604178769","760601001","Оказание услуг в сфере горячего водоснабжения","HOT_VS"]
[26,"Ярославская область","Борисоглебский муниципальный район","78606000","Инальцинское сельское поселение","78606405","28822308","АО \"Малая комплексная энергетика\"","7612043797","760601001","Оказание услуг в сфере горячего водоснабжения","HOT_VS"]
[27,"Ярославская область","Борисоглебский муниципальный район","78606000","Инальцинское сельское поселение","78606405","26569087","АО \"Ярославская генерирующая компания\"","7604178769","760601001","Оказание услуг в сфере горячего водоснабжения","HOT_VS"]
[28,"Ярославская область","Брейтовский муниципальный район","78609000","Брейтовский муниципальный район","78609000","26560525","АО \"ГУ ЖКХ\"","5116000922","511601001","Оказание услуг в сфере горячего водоснабжения","HOT_VS"]
[29,"Ярославская область","Брейтовский муниципальный район","78609000","Брейтовский муниципальный район","78609000","26483498","ГУП ЖКХ ЯО \"Яркоммунсервис\"","7604004508","760401001","Оказание услуг в сфере горячего водоснабжения","HOT_VS"]
[30,"Ярославская область","Брейтовский муниципальный район","78609000","Брейтовский муниципальный район","78609000","26483222","ГУП ЖКХ ЯО \"Яркоммунсервис\" кот. Центра дет. и юношеского туризма","7604004508","760332001","Оказание услуг в сфере горячего водоснабжения","HOT_VS"]
[31,"Ярославская область","Брейтовский муниципальный район","78609000","Брейтовский муниципальный район","78609000","27712950","ОАО \"Яркоммунсервис\"","7604016214","760401001","Оказание услуг в сфере горячего водоснабжения","HOT_VS"]
[32,"Ярославская область","Брейтовский муниципальный район","78609000","Брейтовский муниципальный район","78609000","30903763","ФГБУ \"ЦЖКУ\" МИНОБОРОНЫ РОССИИ","7729314745","770101001","Оказание услуг в сфере горячего водоснабжения","HOT_VS"]
[33,"Ярославская область","Брейтовский муниципальный район","78609000","Брейтовское сельское поселение","78609411","28507030","АО \"Яркоммунсервис\"","7602090950","760201001","Поставка горячей воды","HOT_VS"]
[34,"Ярославская область","Гаврилов-Ямский муниципальный район","78612000","Великосельское сельское поселение","78612405","26901857","АО \"РЭУ\"","7714783092","332743001","Оказание услуг в сфере горячего водоснабжения","HOT_VS"]
[35,"Ярославская область","Гаврилов-Ямский муниципальный район","78612000","Великосельское сельское поселение","78612405","28507030","АО \"Яркоммунсервис\"","7602090950","760201001","Поставка горячей воды","HOT_VS"]
[36,"Ярославская область","Гаврилов-Ямский муниципальный район","78612000","Великосельское сельское поселение","78612405","28507308","Филиал в Ярославской и Костромской областях ОАО междугородной и международной электрической связи \"Ростелеком\"","7707049388","760443001","Поставка горячей воды","HOT_VS"]
[37,"Ярославская область","Гаврилов-Ямский муниципальный район","78612000","Гаврилов-Ямский муниципальный район","78612000","26901857","АО \"РЭУ\"","7714783092","332743001","Оказание услуг в сфере горячего водоснабжения","HOT_VS"]
[38,"Ярославская область","Гаврилов-Ямский муниципальный район","78612000","Гаврилов-Ямский муниципальный район","78612000","26483340","АО \"Ресурс\"","7616009483","761601001","Оказание услуг в сфере горячего водоснабжения","HOT_VS"]
[39,"Ярославская область","Гаврилов-Ямский муниципальный район","78612000","Гаврилов-Ямский муниципальный район","78612000","26483498","ГУП ЖКХ ЯО \"Яркоммунсервис\"","7604004508","760401001","Оказание услуг в сфере горячего водоснабжения","HOT_VS"]
[40,"Ярославская область","Гаврилов-Ямский муниципальный район","78612000","Гаврилов-Ямский муниципальный район","78612000","26483222","ГУП ЖКХ ЯО \"Яркоммунсервис\" кот. Центра дет. и юношеского туризма","7604004508","760332001","Оказание услуг в сфере горячего водоснабжения","HOT_VS"]
[41,"Ярославская область","Гаврилов-Ямский муниципальный район","78612000","Гаврилов-Ямский муниципальный район","78612000","27712950","ОАО \"Яркоммунсервис\"","7604016214","760401001","Оказание услуг в сфере горячего водоснабжения","HOT_VS"]
[42,"Ярославская область","Гаврилов-Ямский муниципальный район","78612000","Гаврилов-Ямский муниципальный район","78612000","28507308","Филиал в Ярославской и Костромской областях ОАО междугородной и международной электрической связи \"Ростелеком\"","7707049388","760443001","Поставка горячей воды","HOT_VS"]
[43,"Ярославская область","Гаврилов-Ямский муниципальный район","78612000","Городское поселение г. Гаврилов-Ям","78612101","26901857","АО \"РЭУ\"","7714783092","332743001","Оказание услуг в сфере горячего водоснабжения","HOT_VS"]
[44,"Ярославская область","Гаврилов-Ямский муниципальный район","78612000","Городское поселение г. Гаврилов-Ям","78612101","26483340","АО \"Ресурс\"","7616009483","761601001","Оказание услуг в сфере горячего водоснабжения","HOT_VS"]
[45,"Ярославская область","Гаврилов-Ямский муниципальный район","78612000","Городское поселение г. Гаврилов-Ям","78612101","28507308","Филиал в Ярославской и Костромской областях ОАО междугородной и международной электрической связи \"Ростелеком\"","7707049388","760443001","Поставка горячей воды","HOT_VS"]
[46,"Ярославская область","Гаврилов-Ямский муниципальный район","78612000","Заячье-Холмское сельское поселение","78612477","26901857","АО \"РЭУ\"","7714783092","332743001","Оказание услуг в сфере горячего водоснабжения","HOT_VS"]
[47,"Ярославская область","Гаврилов-Ямский муниципальный район","78612000","Заячье-Холмское сельское поселение","78612477","28507308","Филиал в Ярославской и Костромской областях ОАО междугородной и международной электрической связи \"Ростелеком\"","7707049388","760443001","Поставка горячей воды","HOT_VS"]
[48,"Ярославская область","Гаврилов-Ямский муниципальный район","78612000","Митинское сельское поселение","78612450","26901857","АО \"РЭУ\"","7714783092","332743001","Оказание услуг в сфере горячего водоснабжения","HOT_VS"]
[49,"Ярославская область","Гаврилов-Ямский муниципальный район","78612000","Митинское сельское поселение","78612450","28507030","АО \"Яркоммунсервис\"","7602090950","760201001","Поставка горячей воды","HOT_VS"]
[50,"Ярославская область","Гаврилов-Ямский муниципальный район","78612000","Митинское сельское поселение","78612450","28507308","Филиал в Ярославской и Костромской областях ОАО междугородной и международной электрической связи \"Ростелеком\"","7707049388","760443001","Поставка горячей воды","HOT_VS"]
[51,"Ярославская область","Гаврилов-Ямский муниципальный район","78612000","Шопшинское сельское поселение","78612490","26901857","АО \"РЭУ\"","7714783092","332743001","Оказание услуг в сфере горячего водоснабжения","HOT_VS"]
[52,"Ярославская область","Гаврилов-Ямский муниципальный район","78612000","Шопшинское сельское поселение","78612490","28507308","Филиал в Ярославской и Костромской областях ОАО междугородной и международной электрической связи \"Ростелеком\"","7707049388","760443001","Поставка горячей воды","HOT_VS"]
[53,"Ярославская область","Гаврилов-Ямский муниципальный район","78612000","Шопшинское сельское поселение","78612490","26649247","Филиал в Ярославской и Костромской областях ПАО междугородной и международной электрической связи \"Ростелеком\"","7707049388","760443003","Оказание услуг в сфере горячего водоснабжения","HOT_VS"]
[54,"Ярославская область","Даниловский муниципальный район","78615000","Городское поселение г. Данилов","78615101","26901857","АО \"РЭУ\"","7714783092","332743001","Оказание услуг в сфере горячего водоснабжения","HOT_VS"]
[55,"Ярославская область","Даниловский муниципальный район","78615000","Городское поселение г. Данилов","78615101","26483474","ОАО \"Даниловское ЖКХ\"","7617008098","761701001","Оказание услуг в сфере горячего водоснабжения","HOT_VS"]
[56,"Ярославская область","Даниловский муниципальный район","78615000","Даниловский муниципальный район","78615000","26483498","ГУП ЖКХ ЯО \"Яркоммунсервис\"","7604004508","760401001","Оказание услуг в сфере горячего водоснабжения","HOT_VS"]
[57,"Ярославская область","Даниловский муниципальный район","78615000","Даниловский муниципальный район","78615000","27712950","ОАО \"Яркоммунсервис\"","7604016214","760401001","Оказание услуг в сфере горячего водоснабжения","HOT_VS"]
[58,"Ярославская область","Даниловский муниципальный район","78615000","Даниловское сельское поселение","78615435","28507030","АО \"Яркоммунсервис\"","7602090950","760201001","Поставка горячей воды","HOT_VS"]
[59,"Ярославская область","Любимский муниципальный район","78618000","Воскресенское сельское поселение","78618405","26901857","АО \"РЭУ\"","7714783092","332743001","Оказание услуг в сфере горячего водоснабжения","HOT_VS"]
[60,"Ярославская область","Любимский муниципальный район","78618000","Городское поселение г. Любим","78618101","26901857","АО \"РЭУ\"","7714783092","332743001","Оказание услуг в сфере горячего водоснабжения","HOT_VS"]
[61,"Ярославская область","Любимский муниципальный район","78618000","Городское поселение г. Любим","78618101","26483338","Любимское МУП ЖКХ","7618000140","761801001","Оказание услуг в сфере горячего водоснабжения","HOT_VS"]
[62,"Ярославская область","Любимский муниципальный район","78618000","Ермаковское сельское поселение","78618410","26901857","АО \"РЭУ\"","7714783092","332743001","Оказание услуг в сфере горячего водоснабжения","HOT_VS"]
[63,"Ярославская область","Любимский муниципальный район","78618000","Любимский муниципальный район","78618000","26901857","АО \"РЭУ\"","7714783092","332743001","Оказание услуг в сфере горячего водоснабжения","HOT_VS"]
[64,"Ярославская область","Любимский муниципальный район","78618000","Осецкое сельское поселение","78618433","26901857","АО \"РЭУ\"","7714783092","332743001","Оказание услуг в сфере горячего водоснабжения","HOT_VS"]
[65,"Ярославская область","Мышкинский муниципальный район","78621000","Городское поселение г. Мышкин","78621101","26569087","АО \"Ярославская генерирующая компания\"","7604178769","760601001","Оказание услуг в сфере горячего водоснабжения","HOT_VS"]
[66,"Ярославская область","Мышкинский муниципальный район","78621000","Мышкинский муниципальный район","78621000","26569087","АО \"Ярославская генерирующая компания\"","7604178769","760601001","Оказание услуг в сфере горячего водоснабжения","HOT_VS"]
[67,"Ярославская область","Мышкинский муниципальный район","78621000","Охотинское сельское поселение","78621430","26569087","АО \"Ярославская генерирующая компания\"","7604178769","760601001","Оказание услуг в сфере горячего водоснабжения","HOT_VS"]
[68,"Ярославская область","Мышкинский муниципальный район","78621000","Приволжское сельское поселение","78621415","28507030","АО \"Яркоммунсервис\"","7602090950","760201001","Поставка горячей воды","HOT_VS"]
[69,"Ярославская область","Мышкинский муниципальный район","78621000","Приволжское сельское поселение","78621415","26569087","АО \"Ярославская генерирующая компания\"","7604178769","760601001","Оказание услуг в сфере горячего водоснабжения","HOT_VS"]
[70,"Ярославская область","Мышкинский муниципальный район","78621000","Приволжское сельское поселение","78621415","27712950","ОАО \"Яркоммунсервис\"","7604016214","760401001","Оказание услуг в сфере горячего водоснабжения","HOT_VS"]
[71,"Ярославская область","Некоузский муниципальный район","78623000","Веретейское сельское поселение","78623404","26569087","АО \"Ярославская генерирующая компания\"","7604178769","760601001","Оказание услуг в сфере горячего водоснабжения","HOT_VS"]
[72,"Ярославская область","Некоузский муниципальный район","78623000","Волжское сельское поселение","78623406","26901857","АО \"РЭУ\"","7714783092","332743001","Оказание услуг в сфере горячего водоснабжения","HOT_VS"]
[73,"Ярославская область","Некоузский муниципальный район","78623000","Волжское сельское поселение","78623406","26569087","АО \"Ярославская генерирующая компания\"","7604178769","760601001","Оказание услуг в сфере горячего водоснабжения","HOT_VS"]
[74,"Ярославская область","Некоузский муниципальный район","78623000","Некоузский муниципальный район","78623000","26560525","АО \"ГУ ЖКХ\"","5116000922","511601001","Оказание услуг в сфере горячего водоснабжения","HOT_VS"]
[75,"Ярославская область","Некоузский муниципальный район","78623000","Некоузский муниципальный район","78623000","26569087","АО \"Ярославская генерирующая компания\"","7604178769","760601001","Оказание услуг в сфере горячего водоснабжения","HOT_VS"]
[76,"Ярославская область","Некоузский муниципальный район","78623000","Некоузский муниципальный район","78623000","30903763","ФГБУ \"ЦЖКУ\" МИНОБОРОНЫ РОССИИ","7729314745","770101001","Оказание услуг в сфере горячего водоснабжения","HOT_VS"]
[77,"Ярославская область","Некоузский муниципальный район","78623000","Некоузское сельское поселение","78623415","26569087","АО \"Ярославская генерирующая компания\"","7604178769","760601001","Оказание услуг в сфере горячего водоснабжения","HOT_VS"]
[78,"Ярославская область","Некоузский муниципальный район","78623000","Октябрьское сельское поселение","78623427","26569087","АО \"Ярославская генерирующая компания\"","7604178769","760601001","Оказание услуг в сфере горячего водоснабжения","HOT_VS"]
[79,"Ярославская область","Некрасовский муниципальный район","78626000","Бурмакино сельское поселение","78626409","26901857","АО \"РЭУ\"","7714783092","332743001","Оказание услуг в сфере горячего водоснабжения","HOT_VS"]
[80,"Ярославская область","Некрасовский муниципальный район","78626000","Бурмакино сельское поселение","78626409","28507030","АО \"Яркоммунсервис\"","7602090950","760201001","Поставка горячей воды","HOT_VS"]
[81,"Ярославская область","Некрасовский муниципальный район","78626000","Бурмакино сельское поселение","78626409","26650317","ФГ КЭУ \"Ярославская КЭЧ\" Министерства обороны РФ","7604002910","760401001","Оказание услуг в сфере горячего водоснабжения","HOT_VS"]
[82,"Ярославская область","Некрасовский муниципальный район","78626000","Красный Профинтерн сельское поселение","78626444","26901857","АО \"РЭУ\"","7714783092","332743001","Оказание услуг в сфере горячего водоснабжения","HOT_VS"]
[83,"Ярославская область","Некрасовский муниципальный район","78626000","Красный Профинтерн сельское поселение","78626444","28507030","АО \"Яркоммунсервис\"","7602090950","760201001","Поставка горячей воды","HOT_VS"]
[84,"Ярославская область","Некрасовский муниципальный район","78626000","Некрасовский муниципальный район","78626000","26560525","АО \"ГУ ЖКХ\"","5116000922","511601001","Оказание услуг в сфере горячего водоснабжения","HOT_VS"]
[85,"Ярославская область","Некрасовский муниципальный район","78626000","Некрасовский муниципальный район","78626000","26901857","АО \"РЭУ\"","7714783092","332743001","Оказание услуг в сфере горячего водоснабжения","HOT_VS"]
[86,"Ярославская область","Некрасовский муниципальный район","78626000","Некрасовский муниципальный район","78626000","27712950","ОАО \"Яркоммунсервис\"","7604016214","760401001","Оказание услуг в сфере горячего водоснабжения","HOT_VS"]
[87,"Ярославская область","Некрасовский муниципальный район","78626000","Некрасовский муниципальный район","78626000","30903763","ФГБУ \"ЦЖКУ\" МИНОБОРОНЫ РОССИИ","7729314745","770101001","Оказание услуг в сфере горячего водоснабжения","HOT_VS"]
[88,"Ярославская область","Некрасовский муниципальный район","78626000","Некрасовское сельское поселение","78626457","26901857","АО \"РЭУ\"","7714783092","332743001","Оказание услуг в сфере горячего водоснабжения","HOT_VS"]
[89,"Ярославская область","Некрасовский муниципальный район","78626000","Некрасовское сельское поселение","78626457","28507030","АО \"Яркоммунсервис\"","7602090950","760201001","Поставка горячей воды","HOT_VS"]
[90,"Ярославская область","Некрасовский муниципальный район","78626000","Некрасовское сельское поселение","78626457","26483498","ГУП ЖКХ ЯО \"Яркоммунсервис\"","7604004508","760401001","Оказание услуг в сфере горячего водоснабжения","HOT_VS"]
[91,"Ярославская область","Некрасовский муниципальный район","78626000","Некрасовское сельское поселение","78626457","26483312","ГУП ЖКХ ЯО \"Яркоммунсервис\"  п. Сосновый Бор (ГУ ЯО ОТБ)","7604004508","760201002","Оказание услуг в сфере горячего водоснабжения","HOT_VS"]
[92,"Ярославская область","Некрасовский муниципальный район","78626000","Некрасовское сельское поселение","78626457","26483330","ГУП ЖКХ ЯО \"Яркоммунсервис\" кот. п. Красный Профинтерн","7604004508","760201001","Оказание услуг в сфере горячего водоснабжения","HOT_VS"]
[93,"Ярославская область","Некрасовский муниципальный район","78626000","Некрасовское сельское поселение","78626457","26483326","ГУП ЖКХ ЯО \"Яркоммунсервис\" п. Вятское (ГОУ Учебный центр УВД)","7604004508","762132004","Оказание услуг в сфере горячего водоснабжения","HOT_VS"]
[94,"Ярославская область","Некрасовский муниципальный район","78626000","Некрасовское сельское поселение","78626457","26483318","ГУП ЖКХ ЯО \"Яркоммунсервис\" п. Некрасовское (дом-инт. для престарелых и инвалидов)","7604004508","762132003","Оказание услуг в сфере горячего водоснабжения","HOT_VS"]
[95,"Ярославская область","Некрасовский муниципальный район","78626000","Некрасовское сельское поселение","78626457","26483334","ГУП ЖКХ ЯО \"Яркоммунсервис\" п.Строитель","7604004508","762132006","Оказание услуг в сфере горячего водоснабжения","HOT_VS"]
[96,"Ярославская область","Некрасовский муниципальный район","78626000","Некрасовское сельское поселение","78626457","26483336","ООО \"Санаторий Золотой колос\"","7621006054","762101001","Оказание услуг в сфере горячего водоснабжения","HOT_VS"]
[97,"Ярославская область","Первомайский муниципальный район","78629000","Городское поселение п.Пречистое","78629151","26483192","ОАО \"ТЭСС\"","7603015835","760301001","Оказание услуг в сфере горячего водоснабжения","HOT_VS"]
[98,"Ярославская область","Первомайский муниципальный район","78629000","Пречистенское сельское поселение","78629450","26836275","Северная Дирекция по тепловодоснабжению структурное подразделение Центральной дирекции по тепловодоснабжению - филиала ОАО \"РЖД\"","7708503727","760445028","Оказание услуг в сфере горячего водоснабжения","HOT_VS"]
[99,"Ярославская область","Переславский муниципальный район","78632000","Нагорьевское сельское поселение","78632452","26569087","АО \"Ярославская генерирующая компания\"","7604178769","760601001","Оказание услуг в сфере горячего водоснабжения","HOT_VS"]
[100,"Ярославская область","Переславский муниципальный район","78632000","Переславский муниципальный район","78632000","26569087","АО \"Ярославская генерирующая компания\"","7604178769","760601001","Оказание услуг в сфере горячего водоснабжения","HOT_VS"]
[101,"Ярославская область","Переславский муниципальный район","78632000","Пригородное сельское поселение","78632455","26569087","АО \"Ярославская генерирующая компания\"","7604178769","760601001","Оказание услуг в сфере горячего водоснабжения","HOT_VS"]
[102,"Ярославская область","Переславский муниципальный район","78632000","Рязанцевское сельское поселение","78632468","26569087","АО \"Ярославская генерирующая компания\"","7604178769","760601001","Оказание услуг в сфере горячего водоснабжения","HOT_VS"]
[103,"Ярославская область","Пошехонский муниципальный район","78634000","Белосельское сельское поселение","78634404","26569087","АО \"Ярославская генерирующая компания\"","7604178769","760601001","Оказание услуг в сфере горячего водоснабжения","HOT_VS"]
[104,"Ярославская область","Пошехонский муниципальный район","78634000","Городское поселение Пошехонье","78634101","26569087","АО \"Ярославская генерирующая компания\"","7604178769","760601001","Оказание услуг в сфере горячего водоснабжения","HOT_VS"]
[105,"Ярославская область","Пошехонский муниципальный район","78634000","Ермаковское сельское поселение","78634428","26569087","АО \"Ярославская генерирующая компания\"","7604178769","760601001","Оказание услуг в сфере горячего водоснабжения","HOT_VS"]
[106,"Ярославская область","Пошехонский муниципальный район","78634000","Кременевское сельское поселение","78634460","26569087","АО \"Ярославская генерирующая компания\"","7604178769","760601001","Оказание услуг в сфере горячего водоснабжения","HOT_VS"]
[107,"Ярославская область","Пошехонский муниципальный район","78634000","Пошехонский муниципальный район","78634000","26569087","АО \"Ярославская генерирующая компания\"","7604178769","760601001","Оказание услуг в сфере горячего водоснабжения","HOT_VS"]
[108,"Ярославская область","Пошехонский муниципальный район","78634000","Пригородное сельское поселение","78634436","26569087","АО \"Ярославская генерирующая компания\"","7604178769","760601001","Оказание услуг в сфере горячего водоснабжения","HOT_VS"]
[109,"Ярославская область","Ростовский муниципальный район","78637000","Городское поселение г.Ростов","78637101","26901857","АО \"РЭУ\"","7714783092","332743001","Оказание услуг в сфере горячего водоснабжения","HOT_VS"]
[110,"Ярославская область","Ростовский муниципальный район","78637000","Городское поселение г.Ростов","78637101","26569087","АО \"Ярославская генерирующая компания\"","7604178769","760601001","Оказание услуг в сфере горячего водоснабжения","HOT_VS"]
[111,"Ярославская область","Ростовский муниципальный район","78637000","Городское поселение г.Ростов","78637101","28932227","ООО \"Газпром теплоэнерго Ярославль\"","7603060690","760301001","Оказание услуг в сфере горячего водоснабжения","HOT_VS"]
[112,"Ярославская область","Ростовский муниципальный район","78637000","Городское поселение г.Ростов","78637101","28507308","Филиал в Ярославской и Костромской областях ОАО междугородной и международной электрической связи \"Ростелеком\"","7707049388","760443001","Поставка горячей воды","HOT_VS"]
[113,"Ярославская область","Ростовский муниципальный район","78637000","Ишня сельское поселение","78637412","26901857","АО \"РЭУ\"","7714783092","332743001","Оказание услуг в сфере горячего водоснабжения","HOT_VS"]
[114,"Ярославская область","Ростовский муниципальный район","78637000","Ишня сельское поселение","78637412","26569087","АО \"Ярославская генерирующая компания\"","7604178769","760601001","Оказание услуг в сфере горячего водоснабжения","HOT_VS"]
[115,"Ярославская область","Ростовский муниципальный район","78637000","Ишня сельское поселение","78637412","28932227","ООО \"Газпром теплоэнерго Ярославль\"","7603060690","760301001","Оказание услуг в сфере горячего водоснабжения","HOT_VS"]
[116,"Ярославская область","Ростовский муниципальный район","78637000","Ишня сельское поселение","78637412","28507308","Филиал в Ярославской и Костромской областях ОАО междугородной и международной электрической связи \"Ростелеком\"","7707049388","760443001","Поставка горячей воды","HOT_VS"]
[117,"Ярославская область","Ростовский муниципальный район","78637000","Петровское сельское поселение","78637441","26901857","АО \"РЭУ\"","7714783092","332743001","Оказание услуг в сфере горячего водоснабжения","HOT_VS"]
[118,"Ярославская область","Ростовский муниципальный район","78637000","Петровское сельское поселение","78637441","28507030","АО \"Яркоммунсервис\"","7602090950","760201001","Поставка горячей воды","HOT_VS"]
[119,"Ярославская область","Ростовский муниципальный район","78637000","Петровское сельское поселение","78637441","26569087","АО \"Ярославская генерирующая компания\"","7604178769","760601001","Оказание услуг в сфере горячего водоснабжения","HOT_VS"]
[120,"Ярославская область","Ростовский муниципальный район","78637000","Петровское сельское поселение","78637441","28932227","ООО \"Газпром теплоэнерго Ярославль\"","7603060690","760301001","Оказание услуг в сфере горячего водоснабжения","HOT_VS"]
[121,"Ярославская область","Ростовский муниципальный район","78637000","Петровское сельское поселение","78637441","28507308","Филиал в Ярославской и Костромской областях ОАО междугородной и международной электрической связи \"Ростелеком\"","7707049388","760443001","Поставка горячей воды","HOT_VS"]
[122,"Ярославская область","Ростовский муниципальный район","78637000","Поречье-Рыбное сельское поселение","78637442","26901857","АО \"РЭУ\"","7714783092","332743001","Оказание услуг в сфере горячего водоснабжения","HOT_VS"]
[123,"Ярославская область","Ростовский муниципальный район","78637000","Поречье-Рыбное сельское поселение","78637442","26569087","АО \"Ярославская генерирующая компания\"","7604178769","760601001","Оказание услуг в сфере горячего водоснабжения","HOT_VS"]
[124,"Ярославская область","Ростовский муниципальный район","78637000","Поречье-Рыбное сельское поселение","78637442","30808282","ГП ЯО \"Южный водоканал\"","7609036849","760301001","Оказание услуг в сфере горячего водоснабжения","HOT_VS"]
[125,"Ярославская область","Ростовский муниципальный район","78637000","Поречье-Рыбное сельское поселение","78637442","28932227","ООО \"Газпром теплоэнерго Ярославль\"","7603060690","760301001","Оказание услуг в сфере горячего водоснабжения","HOT_VS"]
[126,"Ярославская область","Ростовский муниципальный район","78637000","Поречье-Рыбное сельское поселение","78637442","28507308","Филиал в Ярославской и Костромской областях ОАО междугородной и международной электрической связи \"Ростелеком\"","7707049388","760443001","Поставка горячей воды","HOT_VS"]
[127,"Ярославская область","Ростовский муниципальный район","78637000","Поречье-Рыбное сельское поселение","78637442","26649247","Филиал в Ярославской и Костромской областях ПАО междугородной и международной электрической связи \"Ростелеком\"","7707049388","760443003","Оказание услуг в сфере горячего водоснабжения","HOT_VS"]
[128,"Ярославская область","Ростовский муниципальный район","78637000","Ростовский муниципальный район","78637000","26560525","АО \"ГУ ЖКХ\"","5116000922","511601001","Оказание услуг в сфере горячего водоснабжения","HOT_VS"]
[129,"Ярославская область","Ростовский муниципальный район","78637000","Ростовский муниципальный район","78637000","26901857","АО \"РЭУ\"","7714783092","332743001","Оказание услуг в сфере горячего водоснабжения","HOT_VS"]
[130,"Ярославская область","Ростовский муниципальный район","78637000","Ростовский муниципальный район","78637000","26569087","АО \"Ярославская генерирующая компания\"","7604178769","760601001","Оказание услуг в сфере горячего водоснабжения","HOT_VS"]
[131,"Ярославская область","Ростовский муниципальный район","78637000","Ростовский муниципальный район","78637000","30808282","ГП ЯО \"Южный водоканал\"","7609036849","760301001","Оказание услуг в сфере горячего водоснабжения","HOT_VS"]
[132,"Ярославская область","Ростовский муниципальный район","78637000","Ростовский муниципальный район","78637000","26483498","ГУП ЖКХ ЯО \"Яркоммунсервис\"","7604004508","760401001","Оказание услуг в сфере горячего водоснабжения","HOT_VS"]
[133,"Ярославская область","Ростовский муниципальный район","78637000","Ростовский муниципальный район","78637000","26483423","ГУП ЖКХ ЯО \"Яркоммунсервис\" (ГУЗ ЯО ДСС \"Итларь\")","7604004508","760932001","Оказание услуг в сфере горячего водоснабжения","HOT_VS"]
[134,"Ярославская область","Ростовский муниципальный район","78637000","Ростовский муниципальный район","78637000","27712950","ОАО \"Яркоммунсервис\"","7604016214","760401001","Оказание услуг в сфере горячего водоснабжения","HOT_VS"]
[135,"Ярославская область","Ростовский муниципальный район","78637000","Ростовский муниципальный район","78637000","28932227","ООО \"Газпром теплоэнерго Ярославль\"","7603060690","760301001","Оказание услуг в сфере горячего водоснабжения","HOT_VS"]
[136,"Ярославская область","Ростовский муниципальный район","78637000","Ростовский муниципальный район","78637000","28982870","ООО \"ТеплоЭнергоСтройМонтаж\"","7606074821","762701001","Оказание услуг в сфере горячего водоснабжения","HOT_VS"]
[137,"Ярославская область","Ростовский муниципальный район","78637000","Ростовский муниципальный район","78637000","30903763","ФГБУ \"ЦЖКУ\" МИНОБОРОНЫ РОССИИ","7729314745","770101001","Оказание услуг в сфере горячего водоснабжения","HOT_VS"]
[138,"Ярославская область","Ростовский муниципальный район","78637000","Ростовский муниципальный район","78637000","28507308","Филиал в Ярославской и Костромской областях ОАО междугородной и международной электрической связи \"Ростелеком\"","7707049388","760443001","Поставка горячей воды","HOT_VS"]
[139,"Ярославская область","Ростовский муниципальный район","78637000","Семибратово сельское поселение","78637447","26901857","АО \"РЭУ\"","7714783092","332743001","Оказание услуг в сфере горячего водоснабжения","HOT_VS"]
[140,"Ярославская область","Ростовский муниципальный район","78637000","Семибратово сельское поселение","78637447","26569087","АО \"Ярославская генерирующая компания\"","7604178769","760601001","Оказание услуг в сфере горячего водоснабжения","HOT_VS"]
[141,"Ярославская область","Ростовский муниципальный район","78637000","Семибратово сельское поселение","78637447","26483192","ОАО \"ТЭСС\"","7603015835","760301001","Оказание услуг в сфере горячего водоснабжения","HOT_VS"]
[142,"Ярославская область","Ростовский муниципальный район","78637000","Семибратово сельское поселение","78637447","28932227","ООО \"Газпром теплоэнерго Ярославль\"","7603060690","760301001","Оказание услуг в сфере горячего водоснабжения","HOT_VS"]
[143,"Ярославская область","Ростовский муниципальный район","78637000","Семибратово сельское поселение","78637447","28507308","Филиал в Ярославской и Костромской областях ОАО междугородной и международной электрической связи \"Ростелеком\"","7707049388","760443001","Поставка горячей воды","HOT_VS"]
[144,"Ярославская область","Рыбинский муниципальный район","78640000","Арефинское сельское поселение","78640410","26483204","ООО \"ТехЭкспо\"","7604122607","760401001","Оказание услуг в сфере горячего водоснабжения","HOT_VS"]
[145,"Ярославская область","Рыбинский муниципальный район","78640000","Каменниковское сельское поселение","78640425","26769748","МУП РМО ЯО \"Коммунальные системы\" передача г/в п.Каменники","7610074824","761001002","Поставка горячей воды","HOT_VS"]
[146,"Ярославская область","Рыбинский муниципальный район","78640000","Каменниковское сельское поселение","78640425","26483304","МУП РМР ЯО \"Коммунальные системы\"","7610074824","761001001","Оказание услуг в сфере горячего водоснабжения","HOT_VS"]
[147,"Ярославская область","Рыбинский муниципальный район","78640000","Покровское сельское поселение","78640435","28507030","АО \"Яркоммунсервис\"","7602090950","760201001","Поставка горячей воды","HOT_VS"]
[148,"Ярославская область","Рыбинский муниципальный район","78640000","Рыбинский муниципальный район","78640000","26560525","АО \"ГУ ЖКХ\"","5116000922","511601001","Оказание услуг в сфере горячего водоснабжения","HOT_VS"]
[149,"Ярославская область","Рыбинский муниципальный район","78640000","Рыбинский муниципальный район","78640000","26483401","АО \"Рыбинский завод приборостроения\"","7610062970","761001001","Оказание услуг в сфере горячего водоснабжения","HOT_VS"]
[150,"Ярославская область","Рыбинский муниципальный район","78640000","Рыбинский муниципальный район","78640000","26483498","ГУП ЖКХ ЯО \"Яркоммунсервис\"","7604004508","760401001","Оказание услуг в сфере горячего водоснабжения","HOT_VS"]
[151,"Ярославская область","Рыбинский муниципальный район","78640000","Рыбинский муниципальный район","78640000","26649288","ЗАО \"Санаторий имени Воровского\"","7626001860","761001001","Оказание услуг в сфере горячего водоснабжения","HOT_VS"]
[152,"Ярославская область","Рыбинский муниципальный район","78640000","Рыбинский муниципальный район","78640000","26483304","МУП РМР ЯО \"Коммунальные системы\"","7610074824","761001001","Оказание услуг в сфере горячего водоснабжения","HOT_VS"]
[153,"Ярославская область","Рыбинский муниципальный район","78640000","Рыбинский муниципальный район","78640000","27712950","ОАО \"Яркоммунсервис\"","7604016214","760401001","Оказание услуг в сфере горячего водоснабжения","HOT_VS"]
[154,"Ярославская область","Рыбинский муниципальный район","78640000","Рыбинский муниципальный район","78640000","26483296","ООО \"Санаторий \"Черная речка\"","7610057882","761001001","Оказание услуг в сфере горячего водоснабжения","HOT_VS"]
[155,"Ярославская область","Рыбинский муниципальный район","78640000","Рыбинский муниципальный район","78640000","26483204","ООО \"ТехЭкспо\"","7604122607","760401001","Оказание услуг в сфере горячего водоснабжения","HOT_VS"]
[156,"Ярославская область","Рыбинский муниципальный район","78640000","Рыбинский муниципальный район","78640000","30903763","ФГБУ \"ЦЖКУ\" МИНОБОРОНЫ РОССИИ","7729314745","770101001","Оказание услуг в сфере горячего водоснабжения","HOT_VS"]
[157,"Ярославская область","Рыбинский муниципальный район","78640000","Судоверфское сельское поселение","78640452","26901857","АО \"РЭУ\"","7714783092","332743001","Оказание услуг в сфере горячего водоснабжения","HOT_VS"]
[158,"Ярославская область","Тутаевский муниципальный район","78643000","Артемьевское сельское поселение","78643405","26901857","АО \"РЭУ\"","7714783092","332743001","Оказание услуг в сфере горячего водоснабжения","HOT_VS"]
[159,"Ярославская область","Тутаевский муниципальный район","78643000","Артемьевское сельское поселение","78643405","28443212","МУП ТМР \"Тутаевские коммунальные системы\"","7611022836","761101001","Поставка горячей воды","HOT_VS"]
[160,"Ярославская область","Тутаевский муниципальный район","78643000","Городское поселение г.Тутаев","78643101","26901857","АО \"РЭУ\"","7714783092","332743001","Оказание услуг в сфере горячего водоснабжения","HOT_VS"]
[161,"Ярославская область","Тутаевский муниципальный район","78643000","Городское поселение г.Тутаев","78643101","28134686","АО \"Тутаевская ПГУ\"","7611020204","761101001","Оказание услуг в сфере горячего водоснабжения","HOT_VS"]
[162,"Ярославская область","Тутаевский муниципальный район","78643000","Городское поселение г.Тутаев","78643101","26569087","АО \"Ярославская генерирующая компания\"","7604178769","760601001","Оказание услуг в сфере горячего водоснабжения","HOT_VS"]
[163,"Ярославская область","Тутаевский муниципальный район","78643000","Городское поселение г.Тутаев","78643101","28443212","МУП ТМР \"Тутаевские коммунальные системы\"","7611022836","761101001","Поставка горячей воды","HOT_VS"]
[164,"Ярославская область","Тутаевский муниципальный район","78643000","Городское поселение г.Тутаев","78643101","26569085","ОАО \"Ярославская генерирующая компания\"","7604178769","761101001","Оказание услуг в сфере горячего водоснабжения","HOT_VS"]
[165,"Ярославская область","Тутаевский муниципальный район","78643000","Константиновское сельское поселение","78643420","26901857","АО \"РЭУ\"","7714783092","332743001","Оказание услуг в сфере горячего водоснабжения","HOT_VS"]
[166,"Ярославская область","Тутаевский муниципальный район","78643000","Константиновское сельское поселение","78643420","28507030","АО \"Яркоммунсервис\"","7602090950","760201001","Поставка горячей воды","HOT_VS"]
[167,"Ярославская область","Тутаевский муниципальный район","78643000","Константиновское сельское поселение","78643420","26569087","АО \"Ярославская генерирующая компания\"","7604178769","760601001","Оказание услуг в сфере горячего водоснабжения","HOT_VS"]
[168,"Ярославская область","Тутаевский муниципальный район","78643000","Константиновское сельское поселение","78643420","28443212","МУП ТМР \"Тутаевские коммунальные системы\"","7611022836","761101001","Поставка горячей воды","HOT_VS"]
[169,"Ярославская область","Тутаевский муниципальный район","78643000","Константиновское сельское поселение","78643420","27712950","ОАО \"Яркоммунсервис\"","7604016214","760401001","Оказание услуг в сфере горячего водоснабжения","HOT_VS"]
[170,"Ярославская область","Тутаевский муниципальный район","78643000","Левобережное сельское поселение","78643460","26901857","АО \"РЭУ\"","7714783092","332743001","Оказание услуг в сфере горячего водоснабжения","HOT_VS"]
[171,"Ярославская область","Тутаевский муниципальный район","78643000","Левобережное сельское поселение","78643460","28507030","АО \"Яркоммунсервис\"","7602090950","760201001","Поставка горячей воды","HOT_VS"]
[172,"Ярославская область","Тутаевский муниципальный район","78643000","Левобережное сельское поселение","78643460","26483498","ГУП ЖКХ ЯО \"Яркоммунсервис\"","7604004508","760401001","Оказание услуг в сфере горячего водоснабжения","HOT_VS"]
[173,"Ярославская область","Тутаевский муниципальный район","78643000","Левобережное сельское поселение","78643460","28443212","МУП ТМР \"Тутаевские коммунальные системы\"","7611022836","761101001","Поставка горячей воды","HOT_VS"]
[174,"Ярославская область","Тутаевский муниципальный район","78643000","Левобережное сельское поселение","78643460","27712950","ОАО \"Яркоммунсервис\"","7604016214","760401001","Оказание услуг в сфере горячего водоснабжения","HOT_VS"]
[175,"Ярославская область","Тутаевский муниципальный район","78643000","Левобережное сельское поселение","78643460","26525371","ООО \"УК Левобережье\"","7611018780","761101001","Оказание услуг в сфере горячего водоснабжения","HOT_VS"]
[176,"Ярославская область","Тутаевский муниципальный район","78643000","Тутаевский муниципальный район","78643000","26560525","АО \"ГУ ЖКХ\"","5116000922","511601001","Оказание услуг в сфере горячего водоснабжения","HOT_VS"]
[177,"Ярославская область","Тутаевский муниципальный район","78643000","Тутаевский муниципальный район","78643000","26901857","АО \"РЭУ\"","7714783092","332743001","Оказание услуг в сфере горячего водоснабжения","HOT_VS"]
[178,"Ярославская область","Тутаевский муниципальный район","78643000","Тутаевский муниципальный район","78643000","28134686","АО \"Тутаевская ПГУ\"","7611020204","761101001","Оказание услуг в сфере горячего водоснабжения","HOT_VS"]
[179,"Ярославская область","Тутаевский муниципальный район","78643000","Тутаевский муниципальный район","78643000","26569087","АО \"Ярославская генерирующая компания\"","7604178769","760601001","Оказание услуг в сфере горячего водоснабжения","HOT_VS"]
[180,"Ярославская область","Тутаевский муниципальный район","78643000","Тутаевский муниципальный район","78643000","26483498","ГУП ЖКХ ЯО \"Яркоммунсервис\"","7604004508","760401001","Оказание услуг в сфере горячего водоснабжения","HOT_VS"]
[181,"Ярославская область","Тутаевский муниципальный район","78643000","Тутаевский муниципальный район","78643000","26483282","ГУП ЖКХ ЯО \"Яркоммунсервис\" (Красноборская школа)","7604004508","761132001","Оказание услуг в сфере горячего водоснабжения","HOT_VS"]
[182,"Ярославская область","Тутаевский муниципальный район","78643000","Тутаевский муниципальный район","78643000","28443212","МУП ТМР \"Тутаевские коммунальные системы\"","7611022836","761101001","Поставка горячей воды","HOT_VS"]
[183,"Ярославская область","Тутаевский муниципальный район","78643000","Тутаевский муниципальный район","78643000","27712950","ОАО \"Яркоммунсервис\"","7604016214","760401001","Оказание услуг в сфере горячего водоснабжения","HOT_VS"]
[184,"Ярославская область","Тутаевский муниципальный район","78643000","Тутаевский муниципальный район","78643000","26525371","ООО \"УК Левобережье\"","7611018780","761101001","Оказание услуг в сфере горячего водоснабжения","HOT_VS"]
[185,"Ярославская область","Тутаевский муниципальный район","78643000","Тутаевский муниципальный район","78643000","30903763","ФГБУ \"ЦЖКУ\" МИНОБОРОНЫ РОССИИ","7729314745","770101001","Оказание услуг в сфере горячего водоснабжения","HOT_VS"]
[186,"Ярославская область","Тутаевский муниципальный район","78643000","Чебаковское сельское поселение","78643450","26901857","АО \"РЭУ\"","7714783092","332743001","Оказание услуг в сфере горячего водоснабжения","HOT_VS"]
[187,"Ярославская область","Тутаевский муниципальный район","78643000","Чебаковское сельское поселение","78643450","28443212","МУП ТМР \"Тутаевские коммунальные системы\"","7611022836","761101001","Поставка горячей воды","HOT_VS"]
[188,"Ярославская область","Угличский муниципальный район","78646000","Головинское сельское поселение","78646440","28822308","АО \"Малая комплексная энергетика\"","7612043797","760601001","Оказание услуг в сфере горячего водоснабжения","HOT_VS"]
[189,"Ярославская область","Угличский муниципальный район","78646000","Головинское сельское поселение","78646440","26901857","АО \"РЭУ\"","7714783092","332743001","Оказание услуг в сфере горячего водоснабжения","HOT_VS"]
[190,"Ярославская область","Угличский муниципальный район","78646000","Головинское сельское поселение","78646440","26569087","АО \"Ярославская генерирующая компания\"","7604178769","760601001","Оказание услуг в сфере горячего водоснабжения","HOT_VS"]
[191,"Ярославская область","Угличский муниципальный район","78646000","Головинское сельское поселение","78646440","28932227","ООО \"Газпром теплоэнерго Ярославль\"","7603060690","760301001","Оказание услуг в сфере горячего водоснабжения","HOT_VS"]
[192,"Ярославская область","Угличский муниципальный район","78646000","Городское поселение г.Углич","78646101","28822308","АО \"Малая комплексная энергетика\"","7612043797","760601001","Оказание услуг в сфере горячего водоснабжения","HOT_VS"]
[193,"Ярославская область","Угличский муниципальный район","78646000","Городское поселение г.Углич","78646101","26901857","АО \"РЭУ\"","7714783092","332743001","Оказание услуг в сфере горячего водоснабжения","HOT_VS"]
[194,"Ярославская область","Угличский муниципальный район","78646000","Городское поселение г.Углич","78646101","26569087","АО \"Ярославская генерирующая компания\"","7604178769","760601001","Оказание услуг в сфере горячего водоснабжения","HOT_VS"]
[195,"Ярославская область","Угличский муниципальный район","78646000","Городское поселение г.Углич","78646101","26483240","МУП \"Предприятие коммунально-бытового обслуживания\"","7612039712","761201001","Оказание услуг в сфере горячего водоснабжения","HOT_VS"]
[196,"Ярославская область","Угличский муниципальный район","78646000","Городское поселение г.Углич","78646101","27569386","МУП \"Тепловые сети\"","7612043980","761201001","Оказание услуг в сфере горячего водоснабжения","HOT_VS"]
[197,"Ярославская область","Угличский муниципальный район","78646000","Городское поселение г.Углич","78646101","26483192","ОАО \"ТЭСС\"","7603015835","760301001","Оказание услуг в сфере горячего водоснабжения","HOT_VS"]
[198,"Ярославская область","Угличский муниципальный район","78646000","Городское поселение г.Углич","78646101","26769808","ОАО \"Ярославская генерирующая компания\" передача г/в от ЗАО Угличэнергия","7604178769","761201002","Поставка горячей воды","HOT_VS"]
[199,"Ярославская область","Угличский муниципальный район","78646000","Городское поселение г.Углич","78646101","28932227","ООО \"Газпром теплоэнерго Ярославль\"","7603060690","760301001","Оказание услуг в сфере горячего водоснабжения","HOT_VS"]
[200,"Ярославская область","Угличский муниципальный район","78646000","Городское поселение г.Углич","78646101","31026191","ООО \"ТеплоСервис\"","7612048474","761201001","Оказание услуг в сфере горячего водоснабжения","HOT_VS"]
[201,"Ярославская область","Угличский муниципальный район","78646000","Ильинское сельское поселение","78646420","28822308","АО \"Малая комплексная энергетика\"","7612043797","760601001","Оказание услуг в сфере горячего водоснабжения","HOT_VS"]
[202,"Ярославская область","Угличский муниципальный район","78646000","Ильинское сельское поселение","78646420","26901857","АО \"РЭУ\"","7714783092","332743001","Оказание услуг в сфере горячего водоснабжения","HOT_VS"]
[203,"Ярославская область","Угличский муниципальный район","78646000","Ильинское сельское поселение","78646420","26569087","АО \"Ярославская генерирующая компания\"","7604178769","760601001","Оказание услуг в сфере горячего водоснабжения","HOT_VS"]
[204,"Ярославская область","Угличский муниципальный район","78646000","Ильинское сельское поселение","78646420","28932227","ООО \"Газпром теплоэнерго Ярославль\"","7603060690","760301001","Оказание услуг в сфере горячего водоснабжения","HOT_VS"]
[205,"Ярославская область","Угличский муниципальный район","78646000","Отрадновское сельское поселение","78646475","28822308","АО \"Малая комплексная энергетика\"","7612043797","760601001","Оказание услуг в сфере горячего водоснабжения","HOT_VS"]
[206,"Ярославская область","Угличский муниципальный район","78646000","Отрадновское сельское поселение","78646475","26901857","АО \"РЭУ\"","7714783092","332743001","Оказание услуг в сфере горячего водоснабжения","HOT_VS"]
[207,"Ярославская область","Угличский муниципальный район","78646000","Отрадновское сельское поселение","78646475","26569087","АО \"Ярославская генерирующая компания\"","7604178769","760601001","Оказание услуг в сфере горячего водоснабжения","HOT_VS"]
[208,"Ярославская область","Угличский муниципальный район","78646000","Отрадновское сельское поселение","78646475","28932227","ООО \"Газпром теплоэнерго Ярославль\"","7603060690","760301001","Оказание услуг в сфере горячего водоснабжения","HOT_VS"]
[209,"Ярославская область","Угличский муниципальный район","78646000","Слободское сельское поселение","78646410","28822308","АО \"Малая комплексная энергетика\"","7612043797","760601001","Оказание услуг в сфере горячего водоснабжения","HOT_VS"]
[210,"Ярославская область","Угличский муниципальный район","78646000","Слободское сельское поселение","78646410","26901857","АО \"РЭУ\"","7714783092","332743001","Оказание услуг в сфере горячего водоснабжения","HOT_VS"]
[211,"Ярославская область","Угличский муниципальный район","78646000","Слободское сельское поселение","78646410","26569087","АО \"Ярославская генерирующая компания\"","7604178769","760601001","Оказание услуг в сфере горячего водоснабжения","HOT_VS"]
[212,"Ярославская область","Угличский муниципальный район","78646000","Слободское сельское поселение","78646410","28932227","ООО \"Газпром теплоэнерго Ярославль\"","7603060690","760301001","Оказание услуг в сфере горячего водоснабжения","HOT_VS"]
[213,"Ярославская область","Угличский муниципальный район","78646000","Угличский муниципальный район","78646000","26560525","АО \"ГУ ЖКХ\"","5116000922","511601001","Оказание услуг в сфере горячего водоснабжения","HOT_VS"]
[214,"Ярославская область","Угличский муниципальный район","78646000","Угличский муниципальный район","78646000","28822308","АО \"Малая комплексная энергетика\"","7612043797","760601001","Оказание услуг в сфере горячего водоснабжения","HOT_VS"]
[215,"Ярославская область","Угличский муниципальный район","78646000","Угличский муниципальный район","78646000","26901857","АО \"РЭУ\"","7714783092","332743001","Оказание услуг в сфере горячего водоснабжения","HOT_VS"]
[216,"Ярославская область","Угличский муниципальный район","78646000","Угличский муниципальный район","78646000","26569087","АО \"Ярославская генерирующая компания\"","7604178769","760601001","Оказание услуг в сфере горячего водоснабжения","HOT_VS"]
[217,"Ярославская область","Угличский муниципальный район","78646000","Угличский муниципальный район","78646000","26483232","ЗАО \"Угличэнергия\"","7612036704","761201001","Оказание услуг в сфере горячего водоснабжения","HOT_VS"]
[218,"Ярославская область","Угличский муниципальный район","78646000","Угличский муниципальный район","78646000","26525357","МАУ \"Тепловые сети\"","7612034337","761201002","Поставка горячей воды","HOT_VS"]
[219,"Ярославская область","Угличский муниципальный район","78646000","Угличский муниципальный район","78646000","26769949","МАУ \"Тепловые сети\" передача г/в от ОАО \"ТЭСС\"","7612034337","761201003","Поставка горячей воды","HOT_VS"]
[220,"Ярославская область","Угличский муниципальный район","78646000","Угличский муниципальный район","78646000","26769955","МАУ \"Тепловые сети\" передача г/в от ОАО \"Угличский речной порт\"","7612034337","761201005","Поставка горячей воды","HOT_VS"]
[221,"Ярославская область","Угличский муниципальный район","78646000","Угличский муниципальный район","78646000","26769952","МАУ \"Тепловые сети\" передача г/в от ООО \"УЭРМЗ\"","7612034337","761201004","Поставка горячей воды","HOT_VS"]
[222,"Ярославская область","Угличский муниципальный район","78646000","Угличский муниципальный район","78646000","26789085","МАУ \"Тепловые сети\" передача г/в от ФГУП \"Эксперим.биофабрика\"","7612034337","761201006","Поставка горячей воды","HOT_VS"]
[223,"Ярославская область","Угличский муниципальный район","78646000","Угличский муниципальный район","78646000","26483240","МУП \"Предприятие коммунально-бытового обслуживания\"","7612039712","761201001","Оказание услуг в сфере горячего водоснабжения","HOT_VS"]
[224,"Ярославская область","Угличский муниципальный район","78646000","Угличский муниципальный район","78646000","26483192","ОАО \"ТЭСС\"","7603015835","760301001","Оказание услуг в сфере горячего водоснабжения","HOT_VS"]
[225,"Ярославская область","Угличский муниципальный район","78646000","Угличский муниципальный район","78646000","26524565","ОАО \"ТЭСС\" Углич","7603015835","760301003","Оказание услуг в сфере горячего водоснабжения","HOT_VS"]
[226,"Ярославская область","Угличский муниципальный район","78646000","Угличский муниципальный район","78646000","26483258","ОАО \"Угличречпорт\"","7612011178","761201001","Оказание услуг в сфере горячего водоснабжения","HOT_VS"]
[227,"Ярославская область","Угличский муниципальный район","78646000","Угличский муниципальный район","78646000","28932227","ООО \"Газпром теплоэнерго Ярославль\"","7603060690","760301001","Оказание услуг в сфере горячего водоснабжения","HOT_VS"]
[228,"Ярославская область","Угличский муниципальный район","78646000","Угличский муниципальный район","78646000","28459632","ООО \"УМПРЭО\"","7612038469","761201001","Оказание услуг в сфере горячего водоснабжения","HOT_VS"]
[229,"Ярославская область","Угличский муниципальный район","78646000","Угличский муниципальный район","78646000","26483256","ООО \"Угличский экспериментальный ремонтно-механический завод\"","7612033358","761201001","Оказание услуг в сфере горячего водоснабжения","HOT_VS"]
[230,"Ярославская область","Угличский муниципальный район","78646000","Угличский муниципальный район","78646000","30903763","ФГБУ \"ЦЖКУ\" МИНОБОРОНЫ РОССИИ","7729314745","770101001","Оказание услуг в сфере горячего водоснабжения","HOT_VS"]
[231,"Ярославская область","Угличский муниципальный район","78646000","Улейминское сельское поселение","78646480","28822308","АО \"Малая комплексная энергетика\"","7612043797","760601001","Оказание услуг в сфере горячего водоснабжения","HOT_VS"]
[232,"Ярославская область","Угличский муниципальный район","78646000","Улейминское сельское поселение","78646480","26901857","АО \"РЭУ\"","7714783092","332743001","Оказание услуг в сфере горячего водоснабжения","HOT_VS"]
[233,"Ярославская область","Угличский муниципальный район","78646000","Улейминское сельское поселение","78646480","26569087","АО \"Ярославская генерирующая компания\"","7604178769","760601001","Оказание услуг в сфере горячего водоснабжения","HOT_VS"]
[234,"Ярославская область","Угличский муниципальный район","78646000","Улейминское сельское поселение","78646480","28932227","ООО \"Газпром теплоэнерго Ярославль\"","7603060690","760301001","Оказание услуг в сфере горячего водоснабжения","HOT_VS"]
[235,"Ярославская область","Ярославский муниципальный район","78650000","Ивняковское сельское поселение","78650455","26901857","АО \"РЭУ\"","7714783092","332743001","Оказание услуг в сфере горячего водоснабжения","HOT_VS"]
[236,"Ярославская область","Ярославский муниципальный район","78650000","Ивняковское сельское поселение","78650455","28507030","АО \"Яркоммунсервис\"","7602090950","760201001","Поставка горячей воды","HOT_VS"]
[237,"Ярославская область","Ярославский муниципальный район","78650000","Ивняковское сельское поселение","78650455","26483498","ГУП ЖКХ ЯО \"Яркоммунсервис\"","7604004508","760401001","Оказание услуг в сфере горячего водоснабжения","HOT_VS"]
[238,"Ярославская область","Ярославский муниципальный район","78650000","Ивняковское сельское поселение","78650455","27712950","ОАО \"Яркоммунсервис\"","7604016214","760401001","Оказание услуг в сфере горячего водоснабжения","HOT_VS"]
[239,"Ярославская область","Ярославский муниципальный район","78650000","Карабихское сельское поселение","78650430","26901857","АО \"РЭУ\"","7714783092","332743001","Оказание услуг в сфере горячего водоснабжения","HOT_VS"]
[240,"Ярославская область","Ярославский муниципальный район","78650000","Карабихское сельское поселение","78650430","28254087","ООО \"БизнесПродуктГрупп\"","7708579934","772301001","Оказание услуг в сфере горячего водоснабжения","HOT_VS"]
[241,"Ярославская область","Ярославский муниципальный район","78650000","Кузнечихинское сельское поселение","78650435","27568785","ООО \"Муниципальные коммунальные системы\"","7627036930","762701001","Оказание услуг в сфере горячего водоснабжения","HOT_VS"]
[242,"Ярославская область","Ярославский муниципальный район","78650000","Туношенское сельское поселение","78650495","26901857","АО \"РЭУ\"","7714783092","332743001","Оказание услуг в сфере горячего водоснабжения","HOT_VS"]
[243,"Ярославская область","Ярославский муниципальный район","78650000","Туношенское сельское поселение","78650495","28507030","АО \"Яркоммунсервис\"","7602090950","760201001","Поставка горячей воды","HOT_VS"]
[244,"Ярославская область","Ярославский муниципальный район","78650000","Туношенское сельское поселение","78650495","26483498","ГУП ЖКХ ЯО \"Яркоммунсервис\"","7604004508","760401001","Оказание услуг в сфере горячего водоснабжения","HOT_VS"]
[245,"Ярославская область","Ярославский муниципальный район","78650000","Туношенское сельское поселение","78650495","27712950","ОАО \"Яркоммунсервис\"","7604016214","760401001","Оказание услуг в сфере горячего водоснабжения","HOT_VS"]
[246,"Ярославская область","Ярославский муниципальный район","78650000","Ярославский муниципальный район","78650000","26560525","АО \"ГУ ЖКХ\"","5116000922","511601001","Оказание услуг в сфере горячего водоснабжения","HOT_VS"]
[247,"Ярославская область","Ярославский муниципальный район","78650000","Ярославский муниципальный район","78650000","28822308","АО \"Малая комплексная энергетика\"","7612043797","760601001","Оказание услуг в сфере горячего водоснабжения","HOT_VS"]
[248,"Ярославская область","Ярославский муниципальный район","78650000","Ярославский муниципальный район","78650000","26483230","АО \"Ярославльводоканал\"","7606069518","760601001","Оказание услуг в сфере горячего водоснабжения","HOT_VS"]
[249,"Ярославская область","Ярославский муниципальный район","78650000","Ярославский муниципальный район","78650000","26483276","ГУП ЖКХ ЯО \"Яркоммунсервис\" кот. Туношенского дома для престарелых и инвалидов","7604004508","762732002","Оказание услуг в сфере горячего водоснабжения","HOT_VS"]
[250,"Ярославская область","Ярославский муниципальный район","78650000","Ярославский муниципальный район","78650000","26483268","ГУП ЖКХ ЯО \"Яркоммунсервис\" с. Спасское (ГУ ЯО ОПБ)","7604004508","762732001","Оказание услуг в сфере горячего водоснабжения","HOT_VS"]
[251,"Ярославская область","Ярославский муниципальный район","78650000","Ярославский муниципальный район","78650000","26514513","ЗАО \"Пансионат отдыха \"Ярославль\"","7627015577","762701001","Оказание услуг в сфере горячего водоснабжения","HOT_VS"]
[252,"Ярославская область","Ярославский муниципальный район","78650000","Ярославский муниципальный район","78650000","26483278","ЗАО \"Производственная компания \"Ярославич\"","7627002151","762701001","Оказание услуг в сфере горячего водоснабжения","HOT_VS"]
[253,"Ярославская область","Ярославский муниципальный район","78650000","Ярославский муниципальный район","78650000","26514525","ОАО \"ЖКХ \"Заволжье\"","7627032974","762701001","Оказание услуг в сфере горячего водоснабжения","HOT_VS"]
[254,"Ярославская область","Ярославский муниципальный район","78650000","Ярославский муниципальный район","78650000","27548439","ОАО \"Санаторий \"Красный Холм\"","7627015619","762701001","Оказание услуг в сфере горячего водоснабжения","HOT_VS"]
[255,"Ярославская область","Ярославский муниципальный район","78650000","Ярославский муниципальный район","78650000","27568785","ООО \"Муниципальные коммунальные системы\"","7627036930","762701001","Оказание услуг в сфере горячего водоснабжения","HOT_VS"]
[256,"Ярославская область","Ярославский муниципальный район","78650000","Ярославский муниципальный район","78650000","30903763","ФГБУ \"ЦЖКУ\" МИНОБОРОНЫ РОССИИ","7729314745","770101001","Оказание услуг в сфере горячего водоснабжения","HOT_VS"]
[257,"Ярославская область","город Переславль-Залесский","78705000","город Переславль-Залесский","78705000","26560525","АО \"ГУ ЖКХ\"","5116000922","511601001","Оказание услуг в сфере горячего водоснабжения","HOT_VS"]
[258,"Ярославская область","город Переславль-Залесский","78705000","город Переславль-Залесский","78705000","26901857","АО \"РЭУ\"","7714783092","332743001","Оказание услуг в сфере горячего водоснабжения","HOT_VS"]
[259,"Ярославская область","город Переславль-Залесский","78705000","город Переславль-Залесский","78705000","26483153","ЗАО \"Новый мир\"","7608001240","760801001","Оказание услуг в сфере горячего водоснабжения","HOT_VS"]
[260,"Ярославская область","город Переславль-Залесский","78705000","город Переславль-Залесский","78705000","26483622","МУП \"Спектр\"","7608011873","760801001","Оказание услуг в сфере горячего водоснабжения","HOT_VS"]
[261,"Ярославская область","город Переславль-Залесский","78705000","город Переславль-Залесский","78705000","26785009","МУП \"Энергетик\"","7608010100","760801002","Поставка горячей воды","HOT_VS"]
[262,"Ярославская область","город Переславль-Залесский","78705000","город Переславль-Залесский","78705000","26769969","МУП \"Энергетик\" ГВС от ООО \"МЭС\" п.Молодежный","7608010100","760801004","Поставка горячей воды","HOT_VS"]
[263,"Ярославская область","город Переславль-Залесский","78705000","город Переславль-Залесский","78705000","26769972","МУП \"Энергетик\" ГВС от ООО \"МЭС\" п.Чкаловский","7608010100","760801005","Поставка горячей воды","HOT_VS"]
[264,"Ярославская область","город Переславль-Залесский","78705000","город Переславль-Залесский","78705000","26769964","МУП \"Энергетик\" ГВС от ООО \"Переславский технопарк\"","7608010100","760801003","Поставка горячей воды","HOT_VS"]
[265,"Ярославская область","город Переславль-Залесский","78705000","город Переславль-Залесский","78705000","26525350","МУП \"Энергетик\" котельные","7608010100","760801001","Оказание услуг в сфере горячего водоснабжения","HOT_VS"]
[266,"Ярославская область","город Переславль-Залесский","78705000","город Переславль-Залесский","78705000","26649427","ООО \"Муниципальные энергетические системы\"","7727575942","760801001","Оказание услуг в сфере горячего водоснабжения","HOT_VS"]
[267,"Ярославская область","город Переславль-Залесский","78705000","город Переславль-Залесский","78705000","30903763","ФГБУ \"ЦЖКУ\" МИНОБОРОНЫ РОССИИ","7729314745","770101001","Оказание услуг в сфере горячего водоснабжения","HOT_VS"]
[268,"Ярославская область","город Рыбинск","78715000","город Рыбинск","78715000","26483393","АО \"Воентелеком\"","7718766718","761043001","Оказание услуг в сфере горячего водоснабжения","HOT_VS"]
[269,"Ярославская область","город Рыбинск","78715000","город Рыбинск","78715000","26560525","АО \"ГУ ЖКХ\"","5116000922","511601001","Оказание услуг в сфере горячего водоснабжения","HOT_VS"]
[270,"Ярославская область","город Рыбинск","78715000","город Рыбинск","78715000","28135188","АО \"Газпромнефть-Терминал\"","5406724282","540601001","Оказание услуг в сфере горячего водоснабжения","HOT_VS"]
[271,"Ярославская область","город Рыбинск","78715000","город Рыбинск","78715000","26483401","АО \"Рыбинский завод приборостроения\"","7610062970","761001001","Оказание услуг в сфере горячего водоснабжения","HOT_VS"]
[272,"Ярославская область","город Рыбинск","78715000","город Рыбинск","78715000","26483373","МУП ГО г.Рыбинск \"Теплоэнерго\"","7610044403","761001001","Оказание услуг в сфере горячего водоснабжения","HOT_VS"]
[273,"Ярославская область","город Рыбинск","78715000","город Рыбинск","78715000","26525292","ОАО \"Газпромнефть - Ярославль\"","7604140860","761001001","Оказание услуг в сфере горячего водоснабжения","HOT_VS"]
[274,"Ярославская область","город Рыбинск","78715000","город Рыбинск","78715000","26483375","ОАО \"Рыбинскхлеб\"","7610005796","761001001","Оказание услуг в сфере горячего водоснабжения","HOT_VS"]
[275,"Ярославская область","город Рыбинск","78715000","город Рыбинск","78715000","26525309","ООО \"Раскат-РОС\"","7610059375","761001002","Оказание услуг в сфере горячего водоснабжения","HOT_VS"]
[276,"Ярославская область","город Рыбинск","78715000","город Рыбинск","78715000","26483377","ПАО \"ОДК-Сатурн\"","7610052644","761001001","Оказание услуг в сфере горячего водоснабжения","HOT_VS"]
[277,"Ярославская область","город Рыбинск","78715000","город Рыбинск","78715000","30903763","ФГБУ \"ЦЖКУ\" МИНОБОРОНЫ РОССИИ","7729314745","770101001","Оказание услуг в сфере горячего водоснабжения","HOT_VS"]
[278,"Ярославская область","город Рыбинск","78715000","город Рыбинск","78715000","26483391","ФКУ Следственный изолятор 2 УФСИН по Ярославской области","7610028000","761001001","Оказание услуг в сфере горячего водоснабжения","HOT_VS"]
[279,"Ярославская область","город Ярославль","78701000","город Ярославль","78701000","26483206","\"Ярославский электровозоремонтный завод\" им. Б.П. Бещева - филиал ОАО \"Желдорреммаш\"","7715729877","760443001","Оказание услуг в сфере горячего водоснабжения","HOT_VS"]
[280,"Ярославская область","город Ярославль","78701000","город Ярославль","78701000","26560525","АО \"ГУ ЖКХ\"","5116000922","511601001","Оказание услуг в сфере горячего водоснабжения","HOT_VS"]
[281,"Ярославская область","город Ярославль","78701000","город Ярославль","78701000","26483200","АО \"Норский керамический завод\"","7602013169","760201001","Оказание услуг в сфере горячего водоснабжения","HOT_VS"]
[282,"Ярославская область","город Ярославль","78701000","город Ярославль","78701000","26901857","АО \"РЭУ\"","7714783092","332743001","Оказание услуг в сфере горячего водоснабжения","HOT_VS"]
[283,"Ярославская область","город Ярославль","78701000","город Ярославль","78701000","26483176","АО \"Старк-Ресурс\"","7601001072","760401001","Оказание услуг в сфере горячего водоснабжения","HOT_VS"]
[284,"Ярославская область","город Ярославль","78701000","город Ярославль","78701000","28507030","АО \"Яркоммунсервис\"","7602090950","760201001","Поставка горячей воды","HOT_VS"]
[285,"Ярославская область","город Ярославль","78701000","город Ярославль","78701000","26483230","АО \"Ярославльводоканал\"","7606069518","760601001","Оказание услуг в сфере горячего водоснабжения","HOT_VS"]
[286,"Ярославская область","город Ярославль","78701000","город Ярославль","78701000","26569087","АО \"Ярославская генерирующая компания\"","7604178769","760601001","Оказание услуг в сфере горячего водоснабжения","HOT_VS"]
[287,"Ярославская область","город Ярославль","78701000","город Ярославль","78701000","30919361","АО \"Ярославские ЭнергоСистемы\"","7603066822","760301001","Оказание услуг в сфере горячего водоснабжения","HOT_VS"]
[288,"Ярославская область","город Ярославль","78701000","город Ярославль","78701000","26483498","ГУП ЖКХ ЯО \"Яркоммунсервис\"","7604004508","760401001","Оказание услуг в сфере горячего водоснабжения","HOT_VS"]
[289,"Ярославская область","город Ярославль","78701000","город Ярославль","78701000","26483222","ГУП ЖКХ ЯО \"Яркоммунсервис\" кот. Центра дет. и юношеского туризма","7604004508","760332001","Оказание услуг в сфере горячего водоснабжения","HOT_VS"]
[290,"Ярославская область","город Ярославль","78701000","город Ярославль","78701000","26649314","ЗАО \"Ярославль-Резинотехника\"","7603024491","760301001","Оказание услуг в сфере горячего водоснабжения","HOT_VS"]
[291,"Ярославская область","город Ярославль","78701000","город Ярославль","78701000","26483228","МУП \"Ярославский городской энергосбыт\"","7604088265","760301001","Оказание услуг в сфере горячего водоснабжения","HOT_VS"]
[292,"Ярославская область","город Ярославль","78701000","город Ярославль","78701000","26524662","НУЗ \"Дорожная больница станции Ярославль ОАО \"РЖД\"","7604068188","760401001","Оказание услуг в сфере горячего водоснабжения","HOT_VS"]
[293,"Ярославская область","город Ярославль","78701000","город Ярославль","78701000","26483212","ОАО \"Славнефть-Ярославнефтепродукт\"","7601000520","760401001","Оказание услуг в сфере горячего водоснабжения","HOT_VS"]
[294,"Ярославская область","город Ярославль","78701000","город Ярославль","78701000","26483192","ОАО \"ТЭСС\"","7603015835","760301001","Оказание услуг в сфере горячего водоснабжения","HOT_VS"]
[295,"Ярославская область","город Ярославль","78701000","город Ярославль","78701000","26483162","ОАО \"Яргортеплоэнерго\"","7606047507","760601001","Оказание услуг в сфере горячего водоснабжения","HOT_VS"]
[296,"Ярославская область","город Ярославль","78701000","город Ярославль","78701000","27712950","ОАО \"Яркоммунсервис\"","7604016214","760401001","Оказание услуг в сфере горячего водоснабжения","HOT_VS"]
[297,"Ярославская область","город Ярославль","78701000","город Ярославль","78701000","26483198","ООО \"АДС\"","7604008710","760401001","Оказание услуг в сфере горячего водоснабжения","HOT_VS"]
[298,"Ярославская область","город Ярославль","78701000","город Ярославль","78701000","28932227","ООО \"Газпром теплоэнерго Ярославль\"","7603060690","760301001","Оказание услуг в сфере горячего водоснабжения","HOT_VS"]
[299,"Ярославская область","город Ярославль","78701000","город Ярославль","78701000","30925371","ООО \"СК РЕЗЕРВ\"","7604290834","760401001","Оказание услуг в сфере горячего водоснабжения","HOT_VS"]
[300,"Ярославская область","город Ярославль","78701000","город Ярославль","78701000","27555004","ООО \"Спецторг Плюс\"","7604076460","760401001","Оказание услуг в сфере горячего водоснабжения","HOT_VS"]
[301,"Ярославская область","город Ярославль","78701000","город Ярославль","78701000","30814222","ООО \"Строительная Компания Сокол\"","7604165544","760201001","Оказание услуг в сфере горячего водоснабжения","HOT_VS"]
[302,"Ярославская область","город Ярославль","78701000","город Ярославль","78701000","26483204","ООО \"ТехЭкспо\"","7604122607","760401001","Оказание услуг в сфере горячего водоснабжения","HOT_VS"]
[303,"Ярославская область","город Ярославль","78701000","город Ярославль","78701000","28043778","ООО \"УПТК \"Топливоподающие системы\"","7603013073","760601001","Оказание услуг в сфере горячего водоснабжения","HOT_VS"]
[304,"Ярославская область","город Ярославль","78701000","город Ярославль","78701000","28135241","ООО \"Управляющая производственно-торговая компания \"Топливоподающие системы\"","7603013073","760301001","Оказание услуг в сфере горячего водоснабжения","HOT_VS"]
[305,"Ярославская область","город Ярославль","78701000","город Ярославль","78701000","30373563","ООО \"Центр внедрения возобновляемых источников энергии\"","7602098469","760201001","Оказание услуг в сфере горячего водоснабжения","HOT_VS"]
[306,"Ярославская область","город Ярославль","78701000","город Ярославль","78701000","26483164","ООО \"Ярославская фабрика валяной обуви\"","7603015433","760301001","Оказание услуг в сфере горячего водоснабжения","HOT_VS"]
[307,"Ярославская область","город Ярославль","78701000","город Ярославль","78701000","26483170","ПАО \"ТГК-2\"","7606053324","760631001","Оказание услуг в сфере горячего водоснабжения","HOT_VS"]
[308,"Ярославская область","город Ярославль","78701000","город Ярославль","78701000","26836275","Северная Дирекция по тепловодоснабжению структурное подразделение Центральной дирекции по тепловодоснабжению - филиала ОАО \"РЖД\"","7708503727","760445028","Оказание услуг в сфере горячего водоснабжения","HOT_VS"]
[309,"Ярославская область","город Ярославль","78701000","город Ярославль","78701000","26650317","ФГ КЭУ \"Ярославская КЭЧ\" Министерства обороны РФ","7604002910","760401001","Оказание услуг в сфере горячего водоснабжения","HOT_VS"]
[310,"Ярославская область","город Ярославль","78701000","город Ярославль","78701000","30903763","ФГБУ \"ЦЖКУ\" МИНОБОРОНЫ РОССИИ","7729314745","770101001","Оказание услуг в сфере горячего водоснабжения","HOT_VS"]
[311,"Ярославская область","город Ярославль","78701000","город Ярославль","78701000","28507308","Филиал в Ярославской и Костромской областях ОАО междугородной и международной электрической связи \"Ростелеком\"","7707049388","760443001","Поставка горячей воды","HOT_VS"]
[312,"Ярославская область","город Ярославль","78701000","город Ярославль","78701000","26649247","Филиал в Ярославской и Костромской областях ПАО междугородной и международной электрической связи \"Ростелеком\"","7707049388","760443003","Оказание услуг в сфере горячего водоснабжения","HOT_VS"]

{"sheet":"modClassifierValidate","index":22,"n_rows":0,"n_cols":0,"rows_kept":0,"cut":false,"hidden":true,"merged":[]}

{"sheet":"modProv","index":23,"n_rows":0,"n_cols":0,"rows_kept":0,"cut":false,"hidden":true,"merged":[]}

{"sheet":"modHyp","index":24,"n_rows":0,"n_cols":0,"rows_kept":0,"cut":false,"hidden":true,"merged":[]}

{"sheet":"modList00","index":25,"n_rows":0,"n_cols":0,"rows_kept":0,"cut":false,"hidden":true,"merged":[]}

{"sheet":"modList01","index":26,"n_rows":0,"n_cols":0,"rows_kept":0,"cut":false,"hidden":true,"merged":[]}

{"sheet":"modList02","index":27,"n_rows":0,"n_cols":0,"rows_kept":0,"cut":false,"hidden":true,"merged":[]}

{"sheet":"modList03","index":28,"n_rows":0,"n_cols":0,"rows_kept":0,"cut":false,"hidden":true,"merged":[]}

{"sheet":"modList11","index":29,"n_rows":0,"n_cols":0,"rows_kept":0,"cut":false,"hidden":true,"merged":[]}

{"sheet":"modfrmDateChoose","index":30,"n_rows":0,"n_cols":0,"rows_kept":0,"cut":false,"hidden":true,"merged":[]}

{"sheet":"modComm","index":31,"n_rows":0,"n_cols":0,"rows_kept":0,"cut":false,"hidden":true,"merged":[]}

{"sheet":"modThisWorkbook","index":32,"n_rows":0,"n_cols":0,"rows_kept":0,"cut":false,"hidden":true,"merged":[]}

{"sheet":"REESTR_MO","index":33,"n_rows":101,"n_cols":4,"rows_kept":101,"cut":false,"hidden":true,"merged":[]}
["№","МР","МО","МО_ОКТМО"]
[1,"Большесельский муниципальный район","Благовещенское сельское поселение","78603411"]
[2,"Большесельский муниципальный район","Большесельский муниципальный район","78603000"]
[3,"Большесельский муниципальный район","Большесельское сельское поселение","78603422"]
[4,"Большесельский муниципальный район","Вареговское сельское поселение","78603427"]
[5,"Борисоглебский муниципальный район","Андреевское сельское поселение","78606422"]
[6,"Борисоглебский муниципальный район","Борисоглебский муниципальный район","78606000"]
[7,"Борисоглебский муниципальный район","Борисоглебское сельское поселение","78606407"]
[8,"Борисоглебский муниципальный район","Вощажниковское сельское поселение","78606410"]
[9,"Борисоглебский муниципальный район","Высоковское сельское поселение","78606415"]
[10,"Борисоглебский муниципальный район","Инальцинское сельское поселение","78606405"]
[11,"Брейтовский муниципальный район","Брейтовский муниципальный район","78609000"]
[12,"Брейтовский муниципальный район","Брейтовское сельское поселение","78609411"]
[13,"Брейтовский муниципальный район","Гореловское сельское поселение","78609422"]
[14,"Брейтовский муниципальный район","Прозоровское сельское поселение","78609433"]
[15,"Гаврилов-Ямский муниципальный район","Великосельское сельское поселение","78612405"]
[16,"Гаврилов-Ямский муниципальный район","Гаврилов-Ямский муниципальный район","78612000"]
[17,"Гаврилов-Ямский муниципальный район","Городское поселение г. Гаврилов-Ям","78612101"]
[18,"Гаврилов-Ямский муниципальный район","Заячье-Холмское сельское поселение","78612477"]
[19,"Гаврилов-Ямский муниципальный район","Митинское сельское поселение","78612450"]
[20,"Гаврилов-Ямский муниципальный район","Шопшинское сельское поселение","78612490"]
[21,"Даниловский муниципальный район","Городское поселение г. Данилов","78615101"]
[22,"Даниловский муниципальный район","Даниловский муниципальный район","78615000"]
[23,"Даниловский муниципальный район","Даниловское сельское поселение","78615435"]
[24,"Даниловский муниципальный район","Дмитриевское сельское поселение","78615420"]
[25,"Даниловский муниципальный район","Середское сельское поселение","78615470"]
[26,"Любимский муниципальный район","Воскресенское сельское поселение","78618405"]
[27,"Любимский муниципальный район","Городское поселение г. Любим","78618101"]
[28,"Любимский муниципальный район","Ермаковское сельское поселение","78618410"]
[29,"Любимский муниципальный район","Любимский муниципальный район","78618000"]
[30,"Любимский муниципальный район","Осецкое сельское поселение","78618433"]
[31,"Мышкинский муниципальный район","Городское поселение г. Мышкин","78621101"]
[32,"Мышкинский муниципальный район","Мышкинский муниципальный район","78621000"]
[33,"Мышкинский муниципальный район","Охотинское сельское поселение","78621430"]
[34,"Мышкинский муниципальный район","Приволжское сельское поселение","78621415"]
[35,"Некоузский муниципальный район","Веретейское сельское поселение","78623404"]
[36,"Некоузский муниципальный район","Волжское сельское поселение","78623406"]
[37,"Некоузский муниципальный район","Некоузский муниципальный район","78623000"]
[38,"Некоузский муниципальный район","Некоузское сельское поселение","78623415"]
[39,"Некоузский муниципальный район","Октябрьское сельское поселение","78623427"]
[40,"Некрасовский муниципальный район","Бурмакино сельское поселение","78626409"]
[41,"Некрасовский муниципальный район","Красный Профинтерн сельское поселение","78626444"]
[42,"Некрасовский муниципальный район","Некрасовский муниципальный район","78626000"]
[43,"Некрасовский муниципальный район","Некрасовское сельское поселение","78626457"]
[44,"Первомайский муниципальный район","Городское поселение п.Пречистое","78629151"]
[45,"Первомайский муниципальный район","Кукобойское сельское поселение","78629435"]
[46,"Первомайский муниципальный район","Первомайский муниципальный район","78629000"]
[47,"Первомайский муниципальный район","Пречистенское сельское поселение","78629450"]
[48,"Переславский муниципальный район","Нагорьевское сельское поселение","78632452"]
[49,"Переславский муниципальный район","Переславский муниципальный район","78632000"]
[50,"Переславский муниципальный район","Пригородное сельское поселение","78632455"]
[51,"Переславский муниципальный район","Рязанцевское сельское поселение","78632468"]
[52,"Пошехонский муниципальный район","Белосельское сельское поселение","78634404"]
[53,"Пошехонский муниципальный район","Городское поселение Пошехонье","78634101"]
[54,"Пошехонский муниципальный район","Ермаковское сельское поселение","78634428"]
[55,"Пошехонский муниципальный район","Кременевское сельское поселение","78634460"]
[56,"Пошехонский муниципальный район","Пошехонский муниципальный район","78634000"]
[57,"Пошехонский муниципальный район","Пригородное сельское поселение","78634436"]
[58,"Ростовский муниципальный район","Городское поселение г.Ростов","78637101"]
[59,"Ростовский муниципальный район","Ишня сельское поселение","78637412"]
[60,"Ростовский муниципальный район","Петровское сельское поселение","78637441"]
[61,"Ростовский муниципальный район","Поречье-Рыбное сельское поселение","78637442"]
[62,"Ростовский муниципальный район","Ростовский муниципальный район","78637000"]
[63,"Ростовский муниципальный район","Семибратово сельское поселение","78637447"]
[64,"Рыбинский муниципальный район","Арефинское сельское поселение","78640410"]
[65,"Рыбинский муниципальный район","Волжское сельское поселение","78640415"]
[66,"Рыбинский муниципальный район","Глебовское сельское поселение","78640443"]
[67,"Рыбинский муниципальный район","Городское поселение Песочное","78640455"]
[68,"Рыбинский муниципальный район","Каменниковское сельское поселение","78640425"]
[69,"Рыбинский муниципальный район","Назаровское сельское поселение","78640430"]
[70,"Рыбинский муниципальный район","Огарковское сельское поселение","78640440"]
[71,"Рыбинский муниципальный район","Октябрьское сельское поселение","78640420"]
[72,"Рыбинский муниципальный район","Покровское сельское поселение","78640435"]
[73,"Рыбинский муниципальный район","Рыбинский муниципальный район","78640000"]
[74,"Рыбинский муниципальный район","Судоверфское сельское поселение","78640452"]
[75,"Рыбинский муниципальный район","Тихменевское сельское поселение","78640447"]
[76,"Тутаевский муниципальный район","Артемьевское сельское поселение","78643405"]
[77,"Тутаевский муниципальный район","Городское поселение г.Тутаев","78643101"]
[78,"Тутаевский муниципальный район","Константиновское сельское поселение","78643420"]
[79,"Тутаевский муниципальный район","Левобережное сельское поселение","78643460"]
[80,"Тутаевский муниципальный район","Тутаевский муниципальный район","78643000"]
[81,"Тутаевский муниципальный район","Чебаковское сельское поселение","78643450"]
[82,"Угличский муниципальный район","Головинское сельское поселение","78646440"]
[83,"Угличский муниципальный район","Городское поселение г.Углич","78646101"]
[84,"Угличский муниципальный район","Ильинское сельское поселение","78646420"]
[85,"Угличский муниципальный район","Отрадновское сельское поселение","78646475"]
[86,"Угличский муниципальный район","Слободское сельское поселение","78646410"]
[87,"Угличский муниципальный район","Угличский муниципальный район","78646000"]
[88,"Угличский муниципальный район","Улейминское сельское поселение","78646480"]
[89,"Ярославский муниципальный район","Городское поселение п. Лесная Поляна","78650155"]
[90,"Ярославский муниципальный район","Заволжское сельское поселение","78650410"]
[91,"Ярославский муниципальный район","Ивняковское сельское поселение","78650455"]
[92,"Ярославский муниципальный район","Карабихское сельское поселение","78650430"]
[93,"Ярославский муниципальный район","Кузнечихинское сельское поселение","78650435"]
[94,"Ярославский муниципальный район","Курбское сельское поселение","78650440"]
[95,"Ярославский муниципальный район","Некрасовское сельское поселение","78650470"]
[96,"Ярославский муниципальный район","Туношенское сельское поселение","78650495"]
[97,"Ярославский муниципальный район","Ярославский муниципальный район","78650000"]
[98,"город Переславль-Залесский","город Переславль-Залесский","78705000"]
[99,"город Рыбинск","город Рыбинск","78715000"]
[100,"город Ярославль","город Ярославль","78701000"]

{"sheet":"modfrmReestrMR","index":34,"n_rows":0,"n_cols":0,"rows_kept":0,"cut":false,"hidden":true,"merged":[]}

{"sheet":"modfrmCheckUpdates","index":35,"n_rows":0,"n_cols":0,"rows_kept":0,"cut":false,"hidden":true,"merged":[]}